Workbook

Sheet Photos
B2: Photos Pilotes | F2: Photos Motos
B3: Noms | D3: Photos | F3: Noms | H3: Photos
B4: DEVIZIOSO Andrea | C4: ="Photos!"&ADDRESS(ROW(C4),COLUMN(D4)) -> Photos!$D$4 | F4: DUCATI TEAM | G4: ="Photos!"&ADDRESS(ROW(G4),COLUMN(H4)) -> Photos!$H$4
B5: PETRUCCI Danielo | C5: ="Photos!"&ADDRESS(ROW(C5),COLUMN(D5)) -> Photos!$D$5 | F5: APRILIA RACING | G5: ="Photos!"&ADDRESS(ROW(G5),COLUMN(H5)) -> Photos!$H$5
B6: VINALES Maverick | C6: Photos!$D$6 | F6: AVINTIA RACING | G6: Photos!$H$6
B7: ABRAHAM Karel | C7: Photos!$D$7 | F7: HONDA REPSOL | G7: Photos!$H$7
B8: QUARTARARO Fabio | C8: Photos!$D$8 | F8: KTM FACTORY | G8: Photos!$H$8
B9: MORBIDELLI Franco | C9: Photos!$D$9 | F9: KTM TECH3 | G9: Photos!$H$9
B10: LEKUONA Iker | C10: Photos!$D$10 | F10: SUZUKI TEAM | G10: Photos!$H$10
B11: IANNONE Andrea | C11: Photos!$D$11 | F11: YAMAHA FACTORY | G11: Photos!$H$11
B12: NAKAGAMI Takaaki | C12: Photos!$D$12 | F12: YAMAHA PETRONAS | G12: Photos!$H$12
B13: BINDER Brad | C13: Photos!$D$13 | F13: HONDA LCR | G13: Photos!$H$13
B14: CRUTCHLOW Cal | C14: Photos!$D$14 | F14: DUCATI PRAMAC
B15: MIR Joan | C15: Photos!$D$15
B16: ESPARGARO Aleix | C16: Photos!$D$16
B17: RINS Alex | C17: Photos!$D$17
B18: MILLER Jack | C18: Photos!$D$18
B19: ESPARGARO Pol | C19: Photos!$D$19
B20: ROSSI Valentino | C20: Photos!$D$20
B21: RABAT Tito | C21: Photos!$D$21
B22: BAGNAIA Pecco | C22: ="Photos!"&ADDRESS(ROW(C22),COLUMN(D22)) -> Photos!$D$22
B23: MARQUES Alex | C23: Photos!$D$23
B24: OLIVEIRA Miguel | C24: Photos!$D$24
B25: MARQUES Alex | C25: Photos!$D$25
B26: MARQUES Marc | C26: Photos!$D$26

Sheet Champions
C2: CHAMPIONNAT PILOTES 2020
F4: CHAMPION 2020
F5: =IF(Pilotes!G5=1,Pilotes!B5,"") -> QUARTARARO Fabio
B7: DEUXIÈME | J7: TROIXIÈME
B8: =IF(Pilotes!G6=2,Pilotes!B6,"") -> MIR Joan | J8: =IF(Pilotes!G7=3,Pilotes!B7,"") -> DEVIZIOSO Andrea
C16: CHAMPIONNAT CONSTRUCTEURS 2020
F18: CHAMPION 2019
F19: =IF(Écuries!F4=1,Écuries!B4,"") -> YAMAHA PETRONAS
B21: DEUXIÈME | J21: TROIXIÈME
B22: =IF(Écuries!F5=2,Écuries!B5,"") -> DUCATI TEAM | J22: =IF(Écuries!F6=3,Écuries!B6,"") -> 

Sheet Écuries
B3: ÉCURIES | C3: POINTS | D3: Écart/premier | E3: Écart/précédent | F3: RANG
B4: YAMAHA PETRONAS | C4: =SUM(Espagne:Portugal!$G$35:$G$37) -> 192 | F4: =IF(C4="",0,(RANK(C4,$C$4:$C$14))) -> 1
B5: DUCATI TEAM | C5: =SUM(Espagne:Portugal!$G$8:$G$10) -> 165 | D5: =C5-C4 -> -27 | E5: =C5-C4 -> -27 | F5: 2
B6: SUZUKI TEAM | C6: =SUM(Espagne:Portugal!$G$29:$G$31) -> 165 | D6: =C6-C4 -> -27 | E6: =C6-C5 -> 0 | F6: 2
B7: YAMAHA FACTORY | C7: =SUM(Espagne:Portugal!$G$32:$G$34) -> 154 | D7: =C7-C4 -> -38 | E7: -11 | F7: 4
B8: KTM FACTORY | C8: =SUM(Espagne:Portugal!$G$23:$G$25) -> 135 | D8: =C8-C4 -> -57 | E8: -19 | F8: 5
B9: DUCATI PRAMAC | C9: =SUM(Espagne:Portugal!$G$14:$G$16) -> 117 | D9: =C9-C4 -> -75 | E9: -18 | F9: 6
B10: HONDA LCR | C10: =SUM(Espagne:Portugal!$G$20:$G$22) -> 94 | D10: =C10-C4 -> -98 | E10: -23 | F10: 7
B11: KTM TECH3 | C11: =SUM(Espagne:Portugal!$G$26:$G$28) -> 86 | D11: =C11-C4 -> -106 | E11: -8 | F11: 8
B12: AVINTIA RACING | C12: =SUM(Espagne:Portugal!$G$11:$G$13) -> 55 | D12: =C12-C4 -> -137 | E12: -31 | F12: 9
B13: HONDA REPSOL | C13: =SUM(Espagne:Portugal!$G$17:$G$19) -> 55 | D13: =C13-C4 -> -137 | E13: 0 | F13: 9
B14: APRILIA RACING | C14: =SUM(Espagne:Portugal!$G$5:$G$7) -> 35 | D14: =C14-C5 -> -130 | E14: =C14-C13 -> -20 | F14: 11

Sheet Pilotes
B3: PILOTES | C3: Points | D3: Écart-premier | E3: Écart/précédent | F3: Pôle Position | G3: Place | H3: 1 | J3: Courses
C4: =IFERROR(SUM(Andalousie!G33,[1]Bahreïn!F33),"") -> 20 | G4: =IF(C4=0,"",(RANK(C4,C1:C4))) -> 1 | H4: Pos.saison | J4: =IF(F4=0,"",(RANK(F4,F1:F4))) -> 
B5: QUARTARARO Fabio | C5: =SUM(Espagne:Portugal!$G$35) -> 115 | F5: =CalculPool(B5) -> 4 | G5: =IF(C5="",0,(RANK(C5,$C$5:$C$30))) -> 1 | H5: =CalculPosition(B5) -> 3 | J5: Espagne
B6: MIR Joan | C6: =SUM(Espagne:Portugal!$G$29) -> 105 | D6: =C6-C5 -> -10 | E6: =C5-C6 -> 10 | F6: =CalculPool(B6) -> 0 | G6: =IF(C6="",0,(RANK(C6,$C$5:$C$30))) -> 2 | H6: =CalculPosition(B6) -> 0 | J6: Andalousie
B7: DEVIZIOSO Andrea | C7: =SUM(Espagne:Portugal!$G$9) -> 97 | D7: =C7-C5 -> -18 | E7: =C6-C7 -> 8 | F7: 0 | G7: 3 | H7: 1 | J7: Tchèque
B8: VINALES Maverick | C8: =SUM(Espagne:Portugal!$G$33) -> 96 | D8: =C8-C5 -> -19 | E8: =C7-C8 -> 1 | F8: =CalculPool(B8) -> 3 | G8: 4 | H8: 1 | J8: Autriche
B9: NAKAGAMI Takaaki | C9: =SUM(Espagne:Portugal!$G$21) -> 81 | D9: =C9-C5 -> -34 | E9: =C8-C9 -> 15 | F9: 0 | G9: 5 | H9: 0 | J9: Styrie
B10: MORBIDELLI Franco | C10: =SUM(Espagne:Portugal!$G$36) -> 77 | D10: =C10-C5 -> -38 | E10: =C9-C10 -> 4 | F10: 1 | G10: 6 | H10: 1 | J10: Saint-Marin
B11: MILLER Jack | C11: =SUM(Espagne:Portugal!$G$15) -> 75 | D11: =C11-C5 -> -40 | E11: =C10-C11 -> 2 | F11: 0 | G11: 7 | H11: 0 | J11: Emilie-Romagne
B12: ESPARGARO Pol | C12: =SUM(Espagne:Portugal!$G$24) -> 73 | D12: =C12-C5 -> -42 | E12: 2 | F12: 1 | G12: 8 | H12: 0 | J12: Catalogne
B13: OLIVEIRA Miguel | C13: =SUM(Espagne:Portugal!$G$27) -> 69 | D13: =C13-C5 -> -46 | E13: 4 | F13: 0 | G13: 9 | H13: 1 | J13: France
B14: PETRUCCI Danielo | C14: =SUM(Espagne:Portugal!$G$8) -> 64 | D14: =C14-C5 -> -51 | E14: 5 | F14: 0 | G14: 10 | H14: 1 | J14: Aragon
B15: BINDER Brad | C15: =SUM(Espagne:Portugal!$G$23) -> 62 | D15: =C15-C5 -> -53 | E15: 2 | F15: 0 | G15: 11 | H15: 1 | J15: Teruel
B16: RINS Alex | C16: =SUM(Espagne:Portugal!$G$30) -> 60 | D16: =C16-C5 -> -55 | E16: 2 | F16: 0 | G16: 12 | H16: 0 | J16: Europe
B17: ROSSI Valentino | C17: =SUM(Espagne:Portugal!$G$32) -> 58 | D17: =C17-C5 -> -57 | E17: 2 | F17: 0 | G17: 13 | H17: 0 | J17: Valence
B18: ZARCO Johann | C18: =SUM(Espagne:Portugal!$G$11) -> 47 | D18: =C18-C5 -> -68 | E18: 11 | F18: =CalculPool(B18) -> 1 | G18: 14 | H18: 0 | J18: Portugal
B19: MARQUES Alex | C19: =SUM(Espagne:Portugal!$G$17) -> 47 | D19: =C19-C5 -> -68 | E19: 0 | F19: 0 | G19: 14 | H19: 0
B20: MARQUES Alex | C20: =SUM(Espagne:Portugal!$G$17) -> 47 | D20: =C20-C5 -> -68 | E20: 0 | F20: 0 | G20: 14 | H20: 0
B21: BAGNAIA Pecco | C21: =SUM(Espagne:Portugal!$G$14) -> 42 | D21: =C21-C5 -> -73 | E21: 5 | F21: 0 | G21: 17 | H21: 0
B22: ESPARGARO Aleix | C22: =SUM(Espagne:Portugal!$G$6) -> 24 | D22: =C22-C5 -> -91 | E22: 18 | F22: 0 | G22: 18 | H22: 0
B23: LEKUONA Iker | C23: =SUM(Espagne:Portugal!$G$26) -> 17 | D23: =C23-C5 -> -98 | E23: =C22-C23 -> 7 | F23: 0 | G23: 19 | H23: 0
B24: CRUTCHLOW Cal | C24: =SUM(Espagne:Portugal!$G$20) -> 13 | D24: =C24-C5 -> -102 | E24: 4 | F24: 0 | G24: 20 | H24: 0
B25: BRADLEY Smith | C25: =SUM(Espagne:Portugal!$G$7) -> 11 | D25: =C25-C5 -> -104 | E25: 2 | F25: 0 | G25: =IF(C25="",0,(RANK(C25,$C$5:$C$30))) -> 21 | H25: 0
B26: RABAT Tito | C26: =SUM(Espagne:Portugal!$G$12) -> 8 | D26: =C26-C6 -> -97 | E26: 3 | F26: 0 | G26: =IF(C26="",0,(RANK(C26,$C$5:$C$30))) -> 22 | H26: 0
B27: BRADL Stephan | C27: =SUM(Espagne:Portugal!$G$19) -> 8 | D27: =C27-C7 -> -89 | E27: =C26-C27 -> 0 | F27: =CalculPool(B27) -> 0 | G27: 22 | H27: 0
B28: PIRRO Michele | C28: =SUM(Espagne:Portugal!$G$10) -> 4 | D28: =C28-C8 -> -92 | E28: =C27-C28 -> 4 | F28: =CalculPool(B28) -> 0 | G28: 24 | H28: 0
B29: IANNONE Andrea | C29: =SUM(Espagne:Portugal!$G$55) -> 0 | D29: -81 | E29: 4 | F29: 0 | G29: =IF(C29="",0,(RANK(C29,$C$5:$C$30))) -> 25 | H29: 0
B30: MARQUES Marc | C30: =SUM(Espagne:Portugal!$G$18) -> 0 | D30: -77 | E30: 0 | F30: 0 | G30: =IF(C30="",0,(RANK(C30,$C$5:$C$30))) -> 25 | H30: 0

Sheet Espagne
A1: JEREZ - 19 JUILLET 2020
A3: PILOTES | B3: ECURIES | C3: MOTOS | D3: Finish | E3: Pôle | F3: Pt tour | G3: Points | I3: CLASSEMENT
H4: =IF(G4="","",(RANK(G4,G4:G23))) ->  | I4: ÉCURIES | J4: POINTS | K4: RANG
A5: IANNONE Andrea | B5: APRILIA RACING | G5: =IFERROR(CHOOSE(D5,25,20,16,13,11,10,9,8,7,6,5,4,3,2,1)+(F5=1),"") ->  | I5: YAMAHA PETRONAS | J5: =SUM($G$35:$G$37) -> 36 | K5: =IF(J5="",0,(RANK(J5,$J$5:$J$15)))+COUNTIF(J$5:J5,J5)-1 -> 1
A6: ESPARGARO Aleix | D6: OUT | G6: =IFERROR(CHOOSE(D6,25,20,16,13,11,10,9,8,7,6,5,4,3,2,1)+(F6=1),"") ->  | I6: DUCATI TEAM | J6: =SUM($G$8:$G$10) -> 23 | K6: =IF(J6="",0,(RANK(J6,$J$5:$J$15)))+COUNTIF(J$5:J6,J6)-1 -> 2
A7: BRADLEY Smitth | D7: 15 | G7: 1 | I7: DUCATI PRAMAC | J7: =SUM($G$14:$G$16) -> 22 | K7: =IF(J7="",0,(RANK(J7,$J$5:$J$15)))+COUNTIF(J$5:J7,J7)-1 -> 3
A8: PETRUCCI Danielo | B8: DUCATI TEAM | D8: 9 | G8: 7 | I8: YAMAHA FACTORY | J8: =SUM($G$31:$G$33) -> 20 | K8: =IF(J8="",0,(RANK(J8,$J$5:$J$15)))+COUNTIF(J$5:J8,J8)-1 -> 4
A9: DEVIZIOSO Andrea | D9: 3 | G9: 16 | I9: KTM FACTORY | J9: =SUM($G$23:$G$25) -> 13 | K9: =IF(J9="",0,(RANK(J9,$J$5:$J$15)))+COUNTIF(J$5:J9,J9)-1 -> 5
A10: PIRRO Michele | I10: KTM TECH3 | J10: =SUM($G$26:$G$28) -> 8 | K10: =IF(J10="",0,(RANK(J10,$J$5:$J$15)))+COUNTIF(J$5:J10,J10)-1 -> 6
A11: ZARCO Johann | B11: AVINTIA RACING | D11: 11 | G11: 5 | I11: AVINTIA RACING | J11: =SUM($G$11:$G$13) -> 7 | K11: =IF(J11="",0,(RANK(J11,$J$5:$J$15)))+COUNTIF(J$5:J11,J11)-1 -> 7
A12: RABAT Tito | D12: 14 | G12: 2 | I12: HONDA LCR | J12: =SUM($G$20:$G$22) -> 6 | K12: =IF(J12="",0,(RANK(J12,$J$5:$J$15)))+COUNTIF(J$5:J12,J12)-1 -> 8
I13: HONDA REPSOL | J13: =SUM($G$17:$G$19) -> 4 | K13: =IF(J13="",0,(RANK(J13,$J$5:$J$15)))+COUNTIF(J$5:J13,J13)-1 -> 9
A14: BAGNAIA Pecco | B14: DUCATI PRAMAC | D14: 7 | G14: 9 | I14: APRILIA RACING | J14: =SUM($G$5:$G$7) -> 1 | K14: =IF(J14="",0,(RANK(J14,$J$5:$J$15)))+COUNTIF(J$5:J14,J14)-1 -> 10
A15: MILLER Jack | D15: 4 | G15: 13 | I15: SUZUKI TEAM | J15: =SUM($G$29:$G$31) -> 0 | K15: =IF(J15="",0,(RANK(J15,$J$5:$J$15)))+COUNTIF(J$5:J15,J15)-1 -> 11
A17: MARQUES Alex | B17: HONDA REPSOL | D17: 12 | G17: 4
A18: MARQUES Marc | D18: OUT
A19: BRADL Stephan | D19: OUT
A20: CRUTCHLOW Cal | B20: HONDA LCR | D20: OUT
A21: NAKAGAMI Takaaki | D21: 10 | G21: 6
A23: BINDER Brad | B23: KTM FACTORY | D23: 13 | G23: 3
A24: ESPARGARO Pol | D24: 6 | G24: 10
A26: LEKUONA Iker | B26: KTM TECH3 | D26: OUT
A27: OLIVEIRA Miguel | D27: 8 | G27: 8
A29: MIR Joan | B29: SUZUKI TEAM | D29: OUT
A30: RINS Alex | D30: OUT
A32: ROSSI Valentino | B32: YAMAHA FACTORY | D32: OUT
A33: VINALES Maverick | D33: 2 | G33: 20
A35: QUARTARARO Fabio | B35: YAMAHA PETRONAS | D35: 1 | E35: 1 | G35: 25
A36: MORBIDELLI Franco | D36: 5 | G36: 11

Sheet Andalousie
A1: JEREZ - 26 JUILLET 2020
A3: PILOTES | B3: ECURIES | C3: MOTOS | D3: Finish | E3: Pôle | F3: Pt tour | G3: Points | I3: CLASSEMENT
I4: ÉCURIES | J4: POINTS | K4: RANG | L4: TOTAL | M4: PONCTUEL
A5: IANNONE Andrea | B5: APRILIA RACING | G5: =IFERROR(CHOOSE(D5,25,20,16,13,11,10,9,8,7,6,5,4,3,2,1)+(F5=1),"") ->  | I5: YAMAHA FACTORY | J5: =SUM($G$32:$G$34) -> 36 | K5: =IF(J5="",0,(RANK(J5,$J$5:$J$15)))+COUNTIF(J$5:J5,J5)-1 -> 1 | L5: =SUMIF(Espagne!$I$5:$I$15,Andalousie!$I5,Espagne!$J$5:$J$15)+$J$5 -> 56 | M5: =IF(L5="",0,(RANK(L5,$L$5:$L$15)))+COUNTIF(L$5:L5,L5)-1 -> 2
A6: ESPARGARO Aleix | D6: OUT | G6: =IFERROR(CHOOSE(D6,25,20,16,13,11,10,9,8,7,6,5,4,3,2,1)+(F6=1),"") ->  | I6: YAMAHA PETRONAS | J6: =SUM($G$35:$G$37) -> 25 | K6: =IF(J6="",0,(RANK(J6,$J$5:$J$15)))+COUNTIF(J$5:J6,J6)-1 -> 2 | L6: =SUMIF(Espagne!$I$5:$I$15,Andalousie!$I6,Espagne!$J$5:$J$15)+$J$6 -> 61 | M6: =IF(L6="",0,(RANK(L6,$L$5:$L$15)))+COUNTIF(L$5:L6,L6)-1 -> 1
A7: BRADLEY Smitth | D7: 12 | G7: 4 | I7: SUZUKI TEAM | J7: =SUM($G$29:$G$31) -> 17 | K7: =IF(J7="",0,(RANK(J7,$J$5:$J$15)))+COUNTIF(J$5:J7,J7)-1 -> 3 | L7: =SUMIF(Espagne!$I$5:$I$15,Andalousie!$I7,Espagne!$J$5:$J$15)+$J$7 -> 17 | M7: =IF(L7="",0,(RANK(L7,$L$5:$L$15)))+COUNTIF(L$5:L7,L7)-1 -> 8
A8: PETRUCCI Danielo | B8: DUCATI TEAM | D8: OUT | I8: HONDA LCR | J8: =SUM($G$20:$G$22) -> 16 | K8: =IF(J8="",0,(RANK(J8,$J$5:$J$15)))+COUNTIF(J$5:J8,J8)-1 -> 4 | L8: =SUMIF(Espagne!$I$5:$I$15,Andalousie!$I8,Espagne!$J$5:$J$15)+$J$8 -> 22 | M8: =IF(L8="",0,(RANK(L8,$L$5:$L$15)))+COUNTIF(L$5:L8,L8)-1 -> 4
A9: DEVIZIOSO Andrea | D9: 6 | G9: 10 | I9: AVINTIA RACING | J9: =SUM($G$11:$G$13) -> 12 | K9: =IF(J9="",0,(RANK(J9,$J$5:$J$15)))+COUNTIF(J$5:J9,J9)-1 -> 5 | L9: =SUMIF(Espagne!$I$5:$I$15,Andalousie!$I9,Espagne!$J$5:$J$15)+$J$9 -> 19 | M9: =IF(L9="",0,(RANK(L9,$L$5:$L$15)))+COUNTIF(L$5:L9,L9)-1 -> 7
A10: PIRRO Michele | I10: DUCATI TEAM | J10: =SUM($G$8:$G$10) -> 10 | K10: =IF(J10="",0,(RANK(J10,$J$5:$J$15)))+COUNTIF(J$5:J10,J10)-1 -> 6 | L10: =SUMIF(Espagne!$I$5:$I$15,Andalousie!$I10,Espagne!$J$5:$J$15)+$J$10 -> 33 | M10: =IF(L10="",0,(RANK(L10,$L$5:$L$15)))+COUNTIF(L$5:L10,L10)-1 -> 3
A11: ZARCO Johann | B11: AVINTIA RACING | D11: 9 | G11: 7 | I11: KTM FACTORY | J11: =SUM($G$23:$G$25) -> 9 | K11: =IF(J11="",0,(RANK(J11,$J$5:$J$15)))+COUNTIF(J$5:J11,J11)-1 -> 7 | L11: =SUMIF(Espagne!$I$5:$I$15,Andalousie!$I11,Espagne!$J$5:$J$15)+$J$11 -> 22 | M11: =IF(L11="",0,(RANK(L11,$L$5:$L$15)))+COUNTIF(L$5:L11,L11)-1 -> 5
A12: RABAT Tito | D12: 11 | G12: 5 | I12: HONDA REPSOL | J12: =SUM($G$17:$G$19) -> 8 | K12: =IF(J12="",0,(RANK(J12,$J$5:$J$15)))+COUNTIF(J$5:J12,J12)-1 -> 8 | L12: =SUMIF(Espagne!$I$5:$I$15,Andalousie!$I12,Espagne!$J$5:$J$15)+$J$12 -> 12 | M12: =IF(L12="",0,(RANK(L12,$L$5:$L$15)))+COUNTIF(L$5:L12,L12)-1 -> 9
I13: APRILIA RACING | J13: =SUM($G$5:$G$7) -> 4 | K13: =IF(J13="",0,(RANK(J13,$J$5:$J$15)))+COUNTIF(J$5:J13,J13)-1 -> 9 | L13: =SUMIF(Espagne!$I$5:$I$15,Andalousie!$I13,Espagne!$J$5:$J$15)+$J$13 -> 5 | M13: =IF(L13="",0,(RANK(L13,$L$5:$L$15)))+COUNTIF(L$5:L13,L13)-1 -> 11
A14: BAGNAIA Pecco | B14: DUCATI PRAMAC | D14: OUT | I14: DUCATI PRAMAC | J14: =SUM($G$14:$G$16) -> 0 | K14: =IF(J14="",0,(RANK(J14,$J$5:$J$15)))+COUNTIF(J$5:J14,J14)-1 -> 10 | L14: =SUMIF(Espagne!$I$5:$I$15,Andalousie!$I14,Espagne!$J$5:$J$15)+$J$14 -> 22 | M14: =IF(L14="",0,(RANK(L14,$L$5:$L$15)))+COUNTIF(L$5:L14,L14)-1 -> 6
A15: MILLER Jack | D15: OUT | I15: KTM TECH3 | J15: =SUM($G$26:$G$28) -> 0 | K15: =IF(J15="",0,(RANK(J15,$J$5:$J$15)))+COUNTIF(J$5:J15,J15)-1 -> 11 | L15: =SUMIF(Espagne!$I$5:$I$15,Andalousie!$I15,Espagne!$J$5:$J$15)+$J$15 -> 8 | M15: =IF(L15="",0,(RANK(L15,$L$5:$L$15)))+COUNTIF(L$5:L15,L15)-1 -> 10
A17: MARQUES Alex | B17: HONDA REPSOL | D17: 8 | G17: 8
A18: MARQUES Marc
A19: BRADL Stephan
A20: CRUTCHLOW Cal | B20: HONDA LCR | D20: 13 | G20: 3
A21: NAKAGAMI Takaaki | D21: 4 | G21: 13
A23: BINDER Brad | B23: KTM FACTORY | D23: OUT
A24: ESPARGARO Pol | D24: 7 | G24: 9
A26: LEKUONA Iker | B26: KTM TECH3 | D26: OUT
A27: OLIVEIRA Miguel | D27: OUT
A29: MIR Joan | B29: SUZUKI TEAM | D29: 5 | G29: 11
A30: RINS Alex | D30: 10 | G30: 6
A32: ROSSI Valentino | B32: YAMAHA FACTORY | D32: 3 | G32: 16
A33: VINALES Maverick | D33: 2 | G33: 20
A35: QUARTARARO Fabio | B35: YAMAHA PETRONAS | D35: 1 | E35: 1 | G35: 25
A36: MORBIDELLI Franco | D36: OUT

Sheet Tchèque
A1: MASARYK - 9 AOUT 2020
A3: PILOTES | B3: ECURIES | C3: MOTOS | D3: Finish | E3: Pôle | F3: Pt tour | G3: Points | I3: CLASSEMENT
H4: =IF(G4="","",(RANK(G4,G4:G23))) ->  | I4: ÉCURIES | J4: POINTS | K4: RANG | L4: TOTAL | M4: PONCTUEL
A5: IANNONE Andrea | B5: APRILIA RACING | G5: =IFERROR(CHOOSE(D5,25,20,16,13,11,10,9,8,7,6,5,4,3,2,1)+(F5=1),"") ->  | I5: YAMAHA PETRONAS | J5: =SUM($G$35:$G$37) -> 29 | K5: =IF(J5="",0,(RANK(J5,$J$5:$J$15)))+COUNTIF(J$5:J5,J5)-1 -> 1 | L5: =SUMIF(Andalousie!$I$5:$I$15,Tchèque!$I5,Andalousie!$L$5:$L$15)+$J5 -> 90 | M5: =IF(L5="",0,(RANK(L5,$L$5:$L$15)))+COUNTIF(L$5:L5,L5)-1 -> 1
A6: ESPARGARO Aleix | D6: 10 | G6: =IFERROR(CHOOSE(D6,25,20,16,13,11,10,9,8,7,6,5,4,3,2,1)+(F6=1),"") -> 6 | I6: KTM FACTORY | J6: =SUM($G$23:$G$25) -> 25 | K6: =IF(J6="",0,(RANK(J6,$J$5:$J$15)))+COUNTIF(J$5:J6,J6)-1 -> 2 | L6: =SUMIF(Andalousie!$I$5:$I$15,Tchèque!$I6,Andalousie!$L$5:$L$15)+$J6 -> 47 | M6: =IF(L6="",0,(RANK(L6,$L$5:$L$15)))+COUNTIF(L$5:L6,L6)-1 -> 3
A7: BRADLEY Smitth | D7: OUT | I7: AVINTIA RACING | J7: =SUM($G$11:$G$13) -> 16 | K7: =IF(J7="",0,(RANK(J7,$J$5:$J$15)))+COUNTIF(J$5:J7,J7)-1 -> 3 | L7: =SUMIF(Andalousie!$I$5:$I$15,Tchèque!$I7,Andalousie!$L$5:$L$15)+$J7 -> 35 | M7: =IF(L7="",0,(RANK(L7,$L$5:$L$15)))+COUNTIF(L$5:L7,L7)-1 -> 5
A8: PETRUCCI Danielo | B8: DUCATI TEAM | D8: 12 | G8: 4 | I8: YAMAHA FACTORY | J8: =SUM($G$32:$G$34) -> 13 | K8: =IF(J8="",0,(RANK(J8,$J$5:$J$15)))+COUNTIF(J$5:J8,J8)-1 -> 4 | L8: =SUMIF(Andalousie!$I$5:$I$15,Tchèque!$I8,Andalousie!$L$5:$L$15)+$J8 -> 69 | M8: =IF(L8="",0,(RANK(L8,$L$5:$L$15)))+COUNTIF(L$5:L8,L8)-1 -> 2
A9: DEVIZIOSO Andrea | D9: 11 | G9: 5 | I9: SUZUKI TEAM | J9: =SUM($G$29:$G$31) -> 13 | K9: =IF(J9="",0,(RANK(J9,$J$5:$J$15)))+COUNTIF(J$5:J9,J9)-1 -> 5 | L9: =SUMIF(Andalousie!$I$5:$I$15,Tchèque!$I9,Andalousie!$L$5:$L$15)+$J9 -> 30 | M9: =IF(L9="",0,(RANK(L9,$L$5:$L$15)))+COUNTIF(L$5:L9,L9)-1 -> 7
A10: PIRRO Michele | I10: HONDA LCR | J10: =SUM($G$20:$G$22) -> 11 | K10: =IF(J10="",0,(RANK(J10,$J$5:$J$15)))+COUNTIF(J$5:J10,J10)-1 -> 6 | L10: =SUMIF(Andalousie!$I$5:$I$15,Tchèque!$I10,Andalousie!$L$5:$L$15)+$J10 -> 33 | M10: =IF(L10="",0,(RANK(L10,$L$5:$L$15)))+COUNTIF(L$5:L10,L10)-1 -> 6
A11: ZARCO Johann | B11: AVINTIA RACING | D11: 3 | E11: 1 | G11: 16 | I11: KTM TECH3 | J11: =SUM($G$26:$G$28) -> 10 | K11: =IF(J11="",0,(RANK(J11,$J$5:$J$15)))+COUNTIF(J$5:J11,J11)-1 -> 7 | L11: =SUMIF(Andalousie!$I$5:$I$15,Tchèque!$I11,Andalousie!$L$5:$L$15)+$J11 -> 18 | M11: =IF(L11="",0,(RANK(L11,$L$5:$L$15)))+COUNTIF(L$5:L11,L11)-1 -> 9
A12: RABAT Tito | D12: OUT | I12: DUCATI TEAM | J12: =SUM($G$8:$G$10) -> 9 | K12: =IF(J12="",0,(RANK(J12,$J$5:$J$15)))+COUNTIF(J$5:J12,J12)-1 -> 8 | L12: =SUMIF(Andalousie!$I$5:$I$15,Tchèque!$I12,Andalousie!$L$5:$L$15)+$J12 -> 42 | M12: =IF(L12="",0,(RANK(L12,$L$5:$L$15)))+COUNTIF(L$5:L12,L12)-1 -> 4
I13: DUCATI PRAMAC | J13: =SUM($G$14:$G$16) -> 7 | K13: =IF(J13="",0,(RANK(J13,$J$5:$J$15)))+COUNTIF(J$5:J13,J13)-1 -> 9 | L13: =SUMIF(Andalousie!$I$5:$I$15,Tchèque!$I13,Andalousie!$L$5:$L$15)+$J13 -> 29 | M13: =IF(L13="",0,(RANK(L13,$L$5:$L$15)))+COUNTIF(L$5:L13,L13)-1 -> 8
A14: BAGNAIA Pecco | B14: DUCATI PRAMAC | D14: OUT | I14: APRILIA RACING | J14: =SUM($G$5:$G$7) -> 6 | K14: =IF(J14="",0,(RANK(J14,$J$5:$J$15)))+COUNTIF(J$5:J14,J14)-1 -> 10 | L14: =SUMIF(Andalousie!$I$5:$I$15,Tchèque!$I14,Andalousie!$L$5:$L$15)+$J14 -> 11 | M14: =IF(L14="",0,(RANK(L14,$L$5:$L$15)))+COUNTIF(L$5:L14,L14)-1 -> 11
A15: MILLER Jack | D15: 9 | G15: 7 | I15: HONDA REPSOL | J15: =SUM($G$17:$G$19) -> 1 | K15: =IF(J15="",0,(RANK(J15,$J$5:$J$15)))+COUNTIF(J$5:J15,J15)-1 -> 11 | L15: =SUMIF(Andalousie!$I$5:$I$15,Tchèque!$I15,Andalousie!$L$5:$L$15)+$J15 -> 13 | M15: =IF(L15="",0,(RANK(L15,$L$5:$L$15)))+COUNTIF(L$5:L15,L15)-1 -> 10
A17: MARQUES Alex | B17: HONDA REPSOL | D17: 15 | G17: 1
A18: MARQUES Marc
A19: BRADL Stephan
A20: CRUTCHLOW Cal | B20: HONDA LCR | D20: 13 | G20: 3
A21: NAKAGAMI Takaaki | D21: 8 | G21: 8
A23: BINDER Brad | B23: KTM FACTORY | D23: 1 | G23: 25
A24: ESPARGARO Pol | D24: OUT
A26: LEKUONA Iker | B26: KTM TECH3 | D26: OUT
A27: OLIVEIRA Miguel | D27: 6 | G27: 10
A29: MIR Joan | B29: SUZUKI TEAM | D29: OUT
A30: RINS Alex | D30: 4 | G30: 13
A32: ROSSI Valentino | B32: YAMAHA FACTORY | D32: 5 | G32: 11
A33: VINALES Maverick | D33: 14 | G33: 2
A35: QUARTARARO Fabio | B35: YAMAHA PETRONAS | D35: 7 | G35: 9
A36: MORBIDELLI Franco | D36: 2 | G36: 20

Sheet Autriche
A1: SPIELBERG - 16 AOUT 2020
A3: PILOTES | B3: ECURIES | C3: MOTOS | D3: Finish | E3: Pôle | F3: Pt tour | G3: Points | I3: CLASSEMENT
H4: =IF(G4="","",(RANK(G4,G4:G23))) ->  | I4: ÉCURIES | J4: POINTS | K4: RANG | L4: TOTAL | M4: PONCTUEL
A5: IANNONE Andrea | B5: APRILIA RACING | G5: =IFERROR(CHOOSE(D5,25,20,16,13,11,10,9,8,7,6,5,4,3,2,1)+(F5=1),"") ->  | I5: DUCATI TEAM | J5: =SUM($G$8:$G$10) -> 38 | K5: =IF(J5="",0,(RANK(J5,$J$5:$J$15)))+COUNTIF(J$5:J5,J5)-1 -> 1 | L5: =SUMIF(Tchèque!$I$5:$I$15,Autriche!$I5,Tchèque!$L$5:$L$15)+$J5 -> 80 | M5: =IF(L5="",0,(RANK(L5,$L$5:$L$15)))+COUNTIF(L$5:L5,L5)-1 -> 3
A6: ESPARGARO Aleix | D6: 11 | G6: =IFERROR(CHOOSE(D6,25,20,16,13,11,10,9,8,7,6,5,4,3,2,1)+(F6=1),"") -> 5 | I6: SUZUKI TEAM | J6: =SUM($G$29:$G$31) -> 20 | K6: =IF(J6="",0,(RANK(J6,$J$5:$J$15)))+COUNTIF(J$5:J6,J6)-1 -> 2 | L6: =SUMIF(Tchèque!$I$5:$I$15,Autriche!$I6,Tchèque!$L$5:$L$15)+$J6 -> 50 | M6: =IF(L6="",0,(RANK(L6,$L$5:$L$15)))+COUNTIF(L$5:L6,L6)-1 -> 5
A7: BRADLEY Smitth | D7: 13 | G7: 3 | I7: YAMAHA FACTORY | J7: =SUM($G$32:$G$34) -> 17 | K7: =IF(J7="",0,(RANK(J7,$J$5:$J$15)))+COUNTIF(J$5:J7,J7)-1 -> 3 | L7: =SUMIF(Tchèque!$I$5:$I$15,Autriche!$I7,Tchèque!$L$5:$L$15)+$J7 -> 86 | M7: =IF(L7="",0,(RANK(L7,$L$5:$L$15)))+COUNTIF(L$5:L7,L7)-1 -> 2
A8: PETRUCCI Danielo | B8: DUCATI TEAM | D8: 7 | G8: 9 | I8: DUCATI PRAMAC | J8: =SUM($G$14:$G$16) -> 16 | K8: =IF(J8="",0,(RANK(J8,$J$5:$J$15)))+COUNTIF(J$5:J8,J8)-1 -> 4 | L8: =SUMIF(Tchèque!$I$5:$I$15,Autriche!$I8,Tchèque!$L$5:$L$15)+$J8 -> 45 | M8: =IF(L8="",0,(RANK(L8,$L$5:$L$15)))+COUNTIF(L$5:L8,L8)-1 -> 6
A9: DEVIZIOSO Andrea | D9: 1 | G9: 25 | I9: KTM FACTORY | J9: =SUM($G$23:$G$25) -> 13 | K9: =IF(J9="",0,(RANK(J9,$J$5:$J$15)))+COUNTIF(J$5:J9,J9)-1 -> 5 | L9: =SUMIF(Tchèque!$I$5:$I$15,Autriche!$I9,Tchèque!$L$5:$L$15)+$J9 -> 60 | M9: =IF(L9="",0,(RANK(L9,$L$5:$L$15)))+COUNTIF(L$5:L9,L9)-1 -> 4
A10: PIRRO Michele | D10: 12 | G10: 4 | I10: HONDA LCR | J10: =SUM($G$20:$G$22) -> 11 | K10: =IF(J10="",0,(RANK(J10,$J$5:$J$15)))+COUNTIF(J$5:J10,J10)-1 -> 6 | L10: =SUMIF(Tchèque!$I$5:$I$15,Autriche!$I10,Tchèque!$L$5:$L$15)+$J10 -> 44 | M10: =IF(L10="",0,(RANK(L10,$L$5:$L$15)))+COUNTIF(L$5:L10,L10)-1 -> 7
A11: ZARCO Johann | B11: AVINTIA RACING | D11: OUT | I11: APRILIA RACING | J11: =SUM($G$5:$G$7) -> 8 | K11: =IF(J11="",0,(RANK(J11,$J$5:$J$15)))+COUNTIF(J$5:J11,J11)-1 -> 7 | L11: =SUMIF(Tchèque!$I$5:$I$15,Autriche!$I11,Tchèque!$L$5:$L$15)+$J11 -> 19 | M11: =IF(L11="",0,(RANK(L11,$L$5:$L$15)))+COUNTIF(L$5:L11,L11)-1 -> 10
A12: RABAT Tito | D12: OUT | I12: YAMAHA PETRONAS | J12: =SUM($G$35:$G$37) -> 8 | K12: =IF(J12="",0,(RANK(J12,$J$5:$J$15)))+COUNTIF(J$5:J12,J12)-1 -> 8 | L12: =SUMIF(Tchèque!$I$5:$I$15,Autriche!$I12,Tchèque!$L$5:$L$15)+$J12 -> 98 | M12: =IF(L12="",0,(RANK(L12,$L$5:$L$15)))+COUNTIF(L$5:L12,L12)-1 -> 1
I13: KTM TECH3 | J13: =SUM($G$26:$G$28) -> 7 | K13: =IF(J13="",0,(RANK(J13,$J$5:$J$15)))+COUNTIF(J$5:J13,J13)-1 -> 9 | L13: =SUMIF(Tchèque!$I$5:$I$15,Autriche!$I13,Tchèque!$L$5:$L$15)+$J13 -> 25 | M13: =IF(L13="",0,(RANK(L13,$L$5:$L$15)))+COUNTIF(L$5:L13,L13)-1 -> 9
A14: BAGNAIA Pecco | B14: DUCATI PRAMAC | D14: OUT | I14: HONDA REPSOL | J14: =SUM($G$17:$G$19) -> 2 | K14: =IF(J14="",0,(RANK(J14,$J$5:$J$15)))+COUNTIF(J$5:J14,J14)-1 -> 10 | L14: =SUMIF(Tchèque!$I$5:$I$15,Autriche!$I14,Tchèque!$L$5:$L$15)+$J14 -> 15 | M14: =IF(L14="",0,(RANK(L14,$L$5:$L$15)))+COUNTIF(L$5:L14,L14)-1 -> 11
A15: MILLER Jack | D15: 3 | G15: 16 | I15: AVINTIA RACING | J15: =SUM($G$11:$G$13) -> 0 | K15: =IF(J15="",0,(RANK(J15,$J$5:$J$15)))+COUNTIF(J$5:J15,J15)-1 -> 11 | L15: =SUMIF(Tchèque!$I$5:$I$15,Autriche!$I15,Tchèque!$L$5:$L$15)+$J15 -> 35 | M15: =IF(L15="",0,(RANK(L15,$L$5:$L$15)))+COUNTIF(L$5:L15,L15)-1 -> 8
A17: MARQUES Alex | B17: HONDA REPSOL | D17: 14 | G17: 2
A18: MARQUES Marc
A19: BRADL Stephan
A20: CRUTCHLOW Cal | B20: HONDA LCR | D20: 15 | G20: 1
A21: NAKAGAMI Takaaki | D21: 6 | G21: 10
A23: BINDER Brad | B23: KTM FACTORY | D23: 4 | G23: 13
A24: ESPARGARO Pol | D24: OUT
A26: LEKUONA Iker | B26: KTM TECH3 | D26: 9 | G26: 7
A27: OLIVEIRA Miguel | D27: OUT
A29: MIR Joan | B29: SUZUKI TEAM | D29: 2 | G29: 20
A30: RINS Alex | D30: OUT
A32: ROSSI Valentino | B32: YAMAHA FACTORY | D32: 5 | G32: 11
A33: VINALES Maverick | D33: 10 | E33: 1 | G33: 6
A35: QUARTARARO Fabio | B35: YAMAHA PETRONAS | D35: 8 | G35: 8
A36: MORBIDELLI Franco | D36: OUT

Sheet Styrie
A1: SPIELBERG - 23 AOUT 2020
A3: PILOTES | B3: ECURIES | C3: MOTOS | D3: Finish | E3: Pôle | F3: Pt tour | G3: Points | I3: CLASSEMENT
H4: =IF(G4="","",(RANK(G4,G4:G23))) ->  | I4: ÉCURIES | J4: POINTS | K4: RANG | L4: TOTAL | M4: PONCTUEL
A5: IANNONE Andrea | B5: APRILIA RACING | G5: =IFERROR(CHOOSE(D5,25,20,16,13,11,10,9,8,7,6,5,4,3,2,1)+(F5=1),"") ->  | I5: KTM TECH3 | J5: =SUM($G$26:$G$28) -> 31 | K5: =IF(J5="",0,(RANK(J5,$J$5:$J$15)))+COUNTIF(J$5:J5,J5)-1 -> 1 | L5: =SUMIF(Autriche!$I$5:$I$15,Styrie!$I5,Autriche!$L$5:$L$15)+$J5 -> 56 | M5: =IF(L5="",0,(RANK(L5,$L$5:$L$15)))+COUNTIF(L$5:L5,L5)-1 -> 7
A6: ESPARGARO Aleix | D6: 12 | G6: =IFERROR(CHOOSE(D6,25,20,16,13,11,10,9,8,7,6,5,4,3,2,1)+(F6=1),"") -> 4 | I6: KTM FACTORY | J6: =SUM($G$23:$G$25) -> 24 | K6: =IF(J6="",0,(RANK(J6,$J$5:$J$15)))+COUNTIF(J$5:J6,J6)-1 -> 2 | L6: =SUMIF(Autriche!$I$5:$I$15,Styrie!$I6,Autriche!$L$5:$L$15)+$J6 -> 84 | M6: =IF(L6="",0,(RANK(L6,$L$5:$L$15)))+COUNTIF(L$5:L6,L6)-1 -> 4
A7: BRADLEY Smitth | D7: OUT | I7: SUZUKI TEAM | J7: =SUM($G$29:$G$31) -> 23 | K7: =IF(J7="",0,(RANK(J7,$J$5:$J$15)))+COUNTIF(J$5:J7,J7)-1 -> 3 | L7: =SUMIF(Autriche!$I$5:$I$15,Styrie!$I7,Autriche!$L$5:$L$15)+$J7 -> 73 | M7: =IF(L7="",0,(RANK(L7,$L$5:$L$15)))+COUNTIF(L$5:L7,L7)-1 -> 5
A8: PETRUCCI Danielo | B8: DUCATI TEAM | D8: 11 | G8: 5 | I8: DUCATI PRAMAC | J8: =SUM($G$14:$G$16) -> 20 | K8: =IF(J8="",0,(RANK(J8,$J$5:$J$15)))+COUNTIF(J$5:J8,J8)-1 -> 4 | L8: =SUMIF(Autriche!$I$5:$I$15,Styrie!$I8,Autriche!$L$5:$L$15)+$J8 -> 65 | M8: =IF(L8="",0,(RANK(L8,$L$5:$L$15)))+COUNTIF(L$5:L8,L8)-1 -> 6
A9: DEVIZIOSO Andrea | D9: 5 | G9: 11 | I9: DUCATI TEAM | J9: =SUM($G$8:$G$10) -> 16 | K9: =IF(J9="",0,(RANK(J9,$J$5:$J$15)))+COUNTIF(J$5:J9,J9)-1 -> 5 | L9: =SUMIF(Autriche!$I$5:$I$15,Styrie!$I9,Autriche!$L$5:$L$15)+$J9 -> 96 | M9: =IF(L9="",0,(RANK(L9,$L$5:$L$15)))+COUNTIF(L$5:L9,L9)-1 -> 2
A10: PIRRO Michele | I10: HONDA LCR | J10: =SUM($G$20:$G$22) -> 9 | K10: =IF(J10="",0,(RANK(J10,$J$5:$J$15)))+COUNTIF(J$5:J10,J10)-1 -> 6 | L10: =SUMIF(Autriche!$I$5:$I$15,Styrie!$I10,Autriche!$L$5:$L$15)+$J10 -> 53 | M10: =IF(L10="",0,(RANK(L10,$L$5:$L$15)))+COUNTIF(L$5:L10,L10)-1 -> 8
A11: ZARCO Johann | B11: AVINTIA RACING | D11: 14 | G11: 2 | I11: YAMAHA FACTORY | J11: =SUM($G$32:$G$34) -> 7 | K11: =IF(J11="",0,(RANK(J11,$J$5:$J$15)))+COUNTIF(J$5:J11,J11)-1 -> 7 | L11: =SUMIF(Autriche!$I$5:$I$15,Styrie!$I11,Autriche!$L$5:$L$15)+$J11 -> 93 | M11: =IF(L11="",0,(RANK(L11,$L$5:$L$15)))+COUNTIF(L$5:L11,L11)-1 -> 3
A12: RABAT Tito | D12: OUT | I12: APRILIA RACING | J12: =SUM($G$5:$G$7) -> 4 | K12: =IF(J12="",0,(RANK(J12,$J$5:$J$15)))+COUNTIF(J$5:J12,J12)-1 -> 8 | L12: =SUMIF(Autriche!$I$5:$I$15,Styrie!$I12,Autriche!$L$5:$L$15)+$J12 -> 23 | M12: =IF(L12="",0,(RANK(L12,$L$5:$L$15)))+COUNTIF(L$5:L12,L12)-1 -> 10
I13: YAMAHA PETRONAS | J13: =SUM($G$35:$G$37) -> 4 | K13: =IF(J13="",0,(RANK(J13,$J$5:$J$15)))+COUNTIF(J$5:J13,J13)-1 -> 9 | L13: =SUMIF(Autriche!$I$5:$I$15,Styrie!$I13,Autriche!$L$5:$L$15)+$J13 -> 102 | M13: =IF(L13="",0,(RANK(L13,$L$5:$L$15)))+COUNTIF(L$5:L13,L13)-1 -> 1
A14: BAGNAIA Pecco | B14: DUCATI PRAMAC | D14: OUT | I14: AVINTIA RACING | J14: =SUM($G$11:$G$13) -> 2 | K14: =IF(J14="",0,(RANK(J14,$J$5:$J$15)))+COUNTIF(J$5:J14,J14)-1 -> 10 | L14: =SUMIF(Autriche!$I$5:$I$15,Styrie!$I14,Autriche!$L$5:$L$15)+$J14 -> 37 | M14: =IF(L14="",0,(RANK(L14,$L$5:$L$15)))+COUNTIF(L$5:L14,L14)-1 -> 9
A15: MILLER Jack | D15: 2 | G15: 20 | I15: HONDA REPSOL | J15: =SUM($G$17:$G$19) -> 0 | K15: =IF(J15="",0,(RANK(J15,$J$5:$J$15)))+COUNTIF(J$5:J15,J15)-1 -> 11 | L15: =SUMIF(Autriche!$I$5:$I$15,Styrie!$I15,Autriche!$L$5:$L$15)+$J15 -> 15 | M15: =IF(L15="",0,(RANK(L15,$L$5:$L$15)))+COUNTIF(L$5:L15,L15)-1 -> 11
A17: MARQUES Alex | B17: HONDA REPSOL | D17: OUT
A18: MARQUES Marc
A19: BRADL Stephan
A20: CRUTCHLOW Cal | B20: HONDA LCR | D20: OUT
A21: NAKAGAMI Takaaki | D21: 7 | G21: 9
A23: BINDER Brad | B23: KTM FACTORY | D23: 8 | G23: 8
A24: ESPARGARO Pol | D24: 3 | E24: 1 | G24: 16
A26: LEKUONA Iker | B26: KTM TECH3 | D26: 10 | G26: 6
A27: OLIVEIRA Miguel | D27: 1 | G27: 25
A29: MIR Joan | B29: SUZUKI TEAM | D29: 4 | G29: 13
A30: RINS Alex | D30: 6 | G30: 10
A32: ROSSI Valentino | B32: YAMAHA FACTORY | D32: 9 | G32: 7
A33: VINALES Maverick | D33: OUT
A35: QUARTARARO Fabio | B35: YAMAHA PETRONAS | D35: 13 | G35: 3
A36: MORBIDELLI Franco | D36: 15 | G36: 1
D37: OUT

Sheet Saint-Marin
A1: MISANO- 13 SEPTEMBRE 2020
A3: PILOTES | B3: ECURIES | C3: MOTOS | D3: Finish | E3: Pôle | F3: Pt tour | G3: Points | I3: CLASSEMENT
H4: =IF(G4="","",(RANK(G4,G4:G23))) ->  | I4: ÉCURIES | J4: POINTS | K4: RANG | L4: TOTAL | M4: PONCTUEL
A5: IANNONE Andrea | B5: APRILIA RACING | G5: =IFERROR(CHOOSE(D5,25,20,16,13,11,10,9,8,7,6,5,4,3,2,1)+(F5=1),"") ->  | I5: DUCATI PRAMAC | J5: =SUM($G$14:$G$16) -> 28 | K5: =IF(J5="",0,(RANK(J5,$J$5:$J$15)))+COUNTIF(J$5:J5,J5)-1 -> 1 | L5: =SUMIF(Styrie!$I$5:$I$15,'Saint-Marin'!$I5,Styrie!$L$5:$L$15)+$J5 -> 93 | M5: =IF(L5="",0,(RANK(L5,$L$5:$L$15)))+COUNTIF(L$5:L5,L5)-1 -> 6
A6: ESPARGARO Aleix | D6: 13 | G6: =IFERROR(CHOOSE(D6,25,20,16,13,11,10,9,8,7,6,5,4,3,2,1)+(F6=1),"") -> 3 | I6: SUZUKI TEAM | J6: =SUM($G$29:$G$31) -> 27 | K6: =IF(J6="",0,(RANK(J6,$J$5:$J$15)))+COUNTIF(J$5:J6,J6)-1 -> 2 | L6: =SUMIF(Styrie!$I$5:$I$15,'Saint-Marin'!$I6,Styrie!$L$5:$L$15)+$J6 -> 100 | M6: =IF(L6="",0,(RANK(L6,$L$5:$L$15)))+COUNTIF(L$5:L6,L6)-1 -> 4
A7: BRADLEY Smitth | D7: OUT | I7: YAMAHA PETRONAS | J7: =SUM($G$35:$G$37) -> 25 | K7: =IF(J7="",0,(RANK(J7,$J$5:$J$15)))+COUNTIF(J$5:J7,J7)-1 -> 3 | L7: =SUMIF(Styrie!$I$5:$I$15,'Saint-Marin'!$I7,Styrie!$L$5:$L$15)+$J7 -> 127 | M7: =IF(L7="",0,(RANK(L7,$L$5:$L$15)))+COUNTIF(L$5:L7,L7)-1 -> 1
A8: PETRUCCI Danielo | B8: DUCATI TEAM | D8: OUT | I8: YAMAHA FACTORY | J8: =SUM($G$32:$G$34) -> 23 | K8: =IF(J8="",0,(RANK(J8,$J$5:$J$15)))+COUNTIF(J$5:J8,J8)-1 -> 4 | L8: =SUMIF(Styrie!$I$5:$I$15,'Saint-Marin'!$I8,Styrie!$L$5:$L$15)+$J8 -> 116 | M8: =IF(L8="",0,(RANK(L8,$L$5:$L$15)))+COUNTIF(L$5:L8,L8)-1 -> 2
A9: DEVIZIOSO Andrea | D9: 7 | G9: 9 | I9: KTM FACTORY | J9: =SUM($G$23:$G$25) -> 10 | K9: =IF(J9="",0,(RANK(J9,$J$5:$J$15)))+COUNTIF(J$5:J9,J9)-1 -> 5 | L9: =SUMIF(Styrie!$I$5:$I$15,'Saint-Marin'!$I9,Styrie!$L$5:$L$15)+$J9 -> 94 | M9: =IF(L9="",0,(RANK(L9,$L$5:$L$15)))+COUNTIF(L$5:L9,L9)-1 -> 5
A10: PIRRO Michele | I10: DUCATI TEAM | J10: =SUM($G$8:$G$10) -> 9 | K10: =IF(J10="",0,(RANK(J10,$J$5:$J$15)))+COUNTIF(J$5:J10,J10)-1 -> 6 | L10: =SUMIF(Styrie!$I$5:$I$15,'Saint-Marin'!$I10,Styrie!$L$5:$L$15)+$J10 -> 105 | M10: =IF(L10="",0,(RANK(L10,$L$5:$L$15)))+COUNTIF(L$5:L10,L10)-1 -> 3
A11: ZARCO Johann | B11: AVINTIA RACING | D11: 15 | G11: 1 | I11: HONDA LCR | J11: =SUM($G$20:$G$22) -> 7 | K11: =IF(J11="",0,(RANK(J11,$J$5:$J$15)))+COUNTIF(J$5:J11,J11)-1 -> 7 | L11: =SUMIF(Styrie!$I$5:$I$15,'Saint-Marin'!$I11,Styrie!$L$5:$L$15)+$J11 -> 60 | M11: =IF(L11="",0,(RANK(L11,$L$5:$L$15)))+COUNTIF(L$5:L11,L11)-1 -> 8
A12: RABAT Tito | D12: OUT | I12: KTM TECH3 | J12: =SUM($G$20:$G$22) -> 7 | K12: =IF(J12="",0,(RANK(J12,$J$5:$J$15)))+COUNTIF(J$5:J12,J12)-1 -> 8 | L12: =SUMIF(Styrie!$I$5:$I$15,'Saint-Marin'!$I12,Styrie!$L$5:$L$15)+$J12 -> 63 | M12: =IF(L12="",0,(RANK(L12,$L$5:$L$15)))+COUNTIF(L$5:L12,L12)-1 -> 7
I13: APRILIA RACING | J13: =SUM($G$5:$G$7) -> 3 | K13: =IF(J13="",0,(RANK(J13,$J$5:$J$15)))+COUNTIF(J$5:J13,J13)-1 -> 9 | L13: =SUMIF(Styrie!$I$5:$I$15,'Saint-Marin'!$I13,Styrie!$L$5:$L$15)+$J13 -> 26 | M13: =IF(L13="",0,(RANK(L13,$L$5:$L$15)))+COUNTIF(L$5:L13,L13)-1 -> 10
A14: BAGNAIA Pecco | B14: DUCATI PRAMAC | D14: 2 | G14: 20 | I14: AVINTIA RACING | J14: =SUM($G$11:$G$13) -> 1 | K14: =IF(J14="",0,(RANK(J14,$J$5:$J$15)))+COUNTIF(J$5:J14,J14)-1 -> 10 | L14: =SUMIF(Styrie!$I$5:$I$15,'Saint-Marin'!$I14,Styrie!$L$5:$L$15)+$J14 -> 38 | M14: =IF(L14="",0,(RANK(L14,$L$5:$L$15)))+COUNTIF(L$5:L14,L14)-1 -> 9
A15: MILLER Jack | D15: 8 | G15: 8 | I15: HONDA REPSOL | J15: =SUM($G$17:$G$19) -> 0 | K15: =IF(J15="",0,(RANK(J15,$J$5:$J$15)))+COUNTIF(J$5:J15,J15)-1 -> 11 | L15: =SUMIF(Styrie!$I$5:$I$15,'Saint-Marin'!$I15,Styrie!$L$5:$L$15)+$J15 -> 15 | M15: =IF(L15="",0,(RANK(L15,$L$5:$L$15)))+COUNTIF(L$5:L15,L15)-1 -> 11
A17: MARQUES Alex | B17: HONDA REPSOL | D17: OUT
A18: MARQUES Marc
A19: BRADL Stephan
A20: CRUTCHLOW Cal | B20: HONDA LCR | D20: OUT
A21: NAKAGAMI Takaaki | D21: 9 | G21: 7
A23: BINDER Brad | B23: KTM FACTORY | D23: 12 | G23: 4
A24: ESPARGARO Pol | D24: 10 | G24: 6
A26: LEKUONA Iker | B26: KTM TECH3 | D26: 14 | G26: 2
A27: OLIVEIRA Miguel | D27: 11 | G27: 5
A29: MIR Joan | B29: SUZUKI TEAM | D29: 3 | G29: 16
A30: RINS Alex | D30: 5 | G30: 11
A32: ROSSI Valentino | B32: YAMAHA FACTORY | D32: 4 | G32: 13
A33: VINALES Maverick | D33: 6 | E33: 1 | G33: 10
A35: QUARTARARO Fabio | B35: YAMAHA PETRONAS | D35: OUT
A36: MORBIDELLI Franco | D36: 1 | G36: 25

Sheet Emilie-Romagne
A1: MISANO - 20 SEPTEMBRE 2020
A3: PILOTES | B3: ECURIES | C3: MOTOS | D3: Finish | E3: Pôle | F3: Pt tour | G3: Points | I3: CLASSEMENT
H4: =IF(G4="","",(RANK(G4,G4:G23))) ->  | I4: ÉCURIES | J4: POINTS | K4: RANG | L4: TOTAL | M4: PONCTUEL
A5: IANNONE Andrea | B5: APRILIA RACING | G5: =IFERROR(CHOOSE(D5,25,20,16,13,11,10,9,8,7,6,5,4,3,2,1)+(F5=1),"") ->  | I5: YAMAHA FACTORY | J5: =SUM($G$32:$G$34) -> 25 | K5: =IF(J5="",0,(RANK(J5,$J$5:$J$15)))+COUNTIF(J$5:J5,J5)-1 -> 1 | L5: =SUMIF('Saint-Marin'!$I$5:$I$15,'Emilie-Romagne'!$I5,'Saint-Marin'!$L$5:$L$15)+$J5 -> 141 | M5: =IF(L5="",0,(RANK(L5,$L$5:$L$15)))+COUNTIF(L$5:L5,L5)-1 -> 2
A6: ESPARGARO Aleix | D6: OUT | G6: =IFERROR(CHOOSE(D6,25,20,16,13,11,10,9,8,7,6,5,4,3,2,1)+(F6=1),"") ->  | I6: SUZUKI TEAM | J6: =SUM($G$29:$G$31) -> 24 | K6: =IF(J6="",0,(RANK(J6,$J$5:$J$15)))+COUNTIF(J$5:J6,J6)-1 -> 2 | L6: =SUMIF('Saint-Marin'!$I$5:$I$15,'Emilie-Romagne'!$I6,'Saint-Marin'!$L$5:$L$15)+$J6 -> 124 | M6: =IF(L6="",0,(RANK(L6,$L$5:$L$15)))+COUNTIF(L$5:L6,L6)-1 -> 3
A7: BRADLEY Smitth | D7: 13 | G7: 3 | I7: YAMAHA PETRONAS | J7: =SUM($G$35:$G$37) -> 20 | K7: =IF(J7="",0,(RANK(J7,$J$5:$J$15)))+COUNTIF(J$5:J7,J7)-1 -> 3 | L7: =SUMIF('Saint-Marin'!$I$5:$I$15,'Emilie-Romagne'!$I7,'Saint-Marin'!$L$5:$L$15)+$J7 -> 147 | M7: =IF(L7="",0,(RANK(L7,$L$5:$L$15)))+COUNTIF(L$5:L7,L7)-1 -> 1
A8: PETRUCCI Danielo | B8: DUCATI TEAM | D8: 10 | G8: 6 | I8: KTM FACTORY | J8: =SUM($G$23:$G$25) -> 16 | K8: =IF(J8="",0,(RANK(J8,$J$5:$J$15)))+COUNTIF(J$5:J8,J8)-1 -> 4 | L8: =SUMIF('Saint-Marin'!$I$5:$I$15,'Emilie-Romagne'!$I8,'Saint-Marin'!$L$5:$L$15)+$J8 -> 110 | M8: =IF(L8="",0,(RANK(L8,$L$5:$L$15)))+COUNTIF(L$5:L8,L8)-1 -> 5
A9: DEVIZIOSO Andrea | D9: 8 | G9: 8 | I9: DUCATI TEAM | J9: =SUM($G$8:$G$10) -> 14 | K9: =IF(J9="",0,(RANK(J9,$J$5:$J$15)))+COUNTIF(J$5:J9,J9)-1 -> 5 | L9: =SUMIF('Saint-Marin'!$I$5:$I$15,'Emilie-Romagne'!$I9,'Saint-Marin'!$L$5:$L$15)+$J9 -> 119 | M9: =IF(L9="",0,(RANK(L9,$L$5:$L$15)))+COUNTIF(L$5:L9,L9)-1 -> 4
A10: PIRRO Michele | I10: KTM TECH3 | J10: =SUM($G$26:$G$28) -> 11 | K10: =IF(J10="",0,(RANK(J10,$J$5:$J$15)))+COUNTIF(J$5:J10,J10)-1 -> 6 | L10: =SUMIF('Saint-Marin'!$I$5:$I$15,'Emilie-Romagne'!$I10,'Saint-Marin'!$L$5:$L$15)+$J10 -> 74 | M10: =IF(L10="",0,(RANK(L10,$L$5:$L$15)))+COUNTIF(L$5:L10,L10)-1 -> 7
A11: ZARCO Johann | B11: AVINTIA RACING | D11: 11 | G11: 5 | I11: HONDA LCR | J11: =SUM($G$20:$G$22) -> 10 | K11: =IF(J11="",0,(RANK(J11,$J$5:$J$15)))+COUNTIF(J$5:J11,J11)-1 -> 7 | L11: =SUMIF('Saint-Marin'!$I$5:$I$15,'Emilie-Romagne'!$I11,'Saint-Marin'!$L$5:$L$15)+$J11 -> 70 | M11: =IF(L11="",0,(RANK(L11,$L$5:$L$15)))+COUNTIF(L$5:L11,L11)-1 -> 8
A12: RABAT Tito | D12: OUT | I12: HONDA REPSOL | J12: =SUM($G$17:$G$19) -> 9 | K12: =IF(J12="",0,(RANK(J12,$J$5:$J$15)))+COUNTIF(J$5:J12,J12)-1 -> 8 | L12: =SUMIF('Saint-Marin'!$I$5:$I$15,'Emilie-Romagne'!$I12,'Saint-Marin'!$L$5:$L$15)+$J12 -> 24 | M12: =IF(L12="",0,(RANK(L12,$L$5:$L$15)))+COUNTIF(L$5:L12,L12)-1 -> 11
I13: AVINTIA RACING | J13: =SUM($G$11:$G$13) -> 5 | K13: =IF(J13="",0,(RANK(J13,$J$5:$J$15)))+COUNTIF(J$5:J13,J13)-1 -> 9 | L13: =SUMIF('Saint-Marin'!$I$5:$I$15,'Emilie-Romagne'!$I13,'Saint-Marin'!$L$5:$L$15)+$J13 -> 43 | M13: =IF(L13="",0,(RANK(L13,$L$5:$L$15)))+COUNTIF(L$5:L13,L13)-1 -> 9
A14: BAGNAIA Pecco | B14: DUCATI PRAMAC | D14: OUT | I14: APRILIA RACING | J14: =SUM($G$5:$G$7) -> 3 | K14: =IF(J14="",0,(RANK(J14,$J$5:$J$15)))+COUNTIF(J$5:J14,J14)-1 -> 10 | L14: =SUMIF('Saint-Marin'!$I$5:$I$15,'Emilie-Romagne'!$I14,'Saint-Marin'!$L$5:$L$15)+$J14 -> 29 | M14: =IF(L14="",0,(RANK(L14,$L$5:$L$15)))+COUNTIF(L$5:L14,L14)-1 -> 10
A15: MILLER Jack | D15: OUT | I15: DUCATI PRAMAC | J15: =SUM($G$14:$G$16) -> 0 | K15: =IF(J15="",0,(RANK(J15,$J$5:$J$15)))+COUNTIF(J$5:J15,J15)-1 -> 11 | L15: =SUMIF('Saint-Marin'!$I$5:$I$15,'Emilie-Romagne'!$I15,'Saint-Marin'!$L$5:$L$15)+$J15 -> 93 | M15: =IF(L15="",0,(RANK(L15,$L$5:$L$15)))+COUNTIF(L$5:L15,L15)-1 -> 6
A17: MARQUES Alex | B17: HONDA REPSOL | D17: 7 | G17: 9
A18: MARQUES Marc
A19: BRADL Stephan
A20: CRUTCHLOW Cal | B20: HONDA LCR | D20: OUT
A21: NAKAGAMI Takaaki | D21: 6 | G21: 10
A23: BINDER Brad | B23: KTM FACTORY | D23: OUT
A24: ESPARGARO Pol | D24: 3 | G24: 16
A26: LEKUONA Iker | B26: KTM TECH3 | D26: OUT
A27: OLIVEIRA Miguel | D27: 5 | G27: 11
A29: MIR Joan | B29: SUZUKI TEAM | D29: 2 | G29: 20
A30: RINS Alex | D30: 12 | G30: 4
A32: ROSSI Valentino | B32: YAMAHA FACTORY | D32: OUT
A33: VINALES Maverick | D33: 1 | E33: 1 | G33: 25
A35: QUARTARARO Fabio | B35: YAMAHA PETRONAS | D35: 4 | G35: 13
A36: MORBIDELLI Franco | D36: 9 | G36: 7

Sheet Catalogne
A1: BARCELONE - 28 SEPTEMBRE 2020
A3: PILOTES | B3: ECURIES | C3: MOTOS | D3: Finish | E3: Pôle | F3: Pt tour | G3: Points | I3: CLASSEMENT
H4: =IF(G4="","",(RANK(G4,G4:G23))) ->  | I4: ÉCURIES | J4: POINTS | K4: RANG | L4: TOTAL | M4: PONCTUEL
A5: IANNONE Andrea | B5: APRILIA RACING | G5: =IFERROR(CHOOSE(D5,25,20,16,13,11,10,9,8,7,6,5,4,3,2,1)+(F5=1),"") ->  | I5: YAMAHA PETRONAS | J5: =SUM($G$35:$G$37) -> 38 | K5: =IF(J5="",0,(RANK(J5,$J$5:$J$15)))+COUNTIF(J$5:J5,J5)-1 -> 1 | L5: =SUMIF('Emilie-Romagne'!$I$5:$I$15,Catalogne!$I5,'Emilie-Romagne'!$L$5:$L$15)+$J5 -> 185 | M5: =IF(L5="",0,(RANK(L5,$L$5:$L$15)))+COUNTIF(L$5:L5,L5)-1 -> 1
A6: ESPARGARO Aleix | D6: 12 | G6: =IFERROR(CHOOSE(D6,25,20,16,13,11,10,9,8,7,6,5,4,3,2,1)+(F6=1),"") -> 4 | I6: SUZUKI TEAM | J6: =SUM($G$29:$G$31) -> 36 | K6: =IF(J6="",0,(RANK(J6,$J$5:$J$15)))+COUNTIF(J$5:J6,J6)-1 -> 2 | L6: =SUMIF('Emilie-Romagne'!$I$5:$I$15,Catalogne!$I6,'Emilie-Romagne'!$L$5:$L$15)+$J6 -> 160 | M6: =IF(L6="",0,(RANK(L6,$L$5:$L$15)))+COUNTIF(L$5:L6,L6)-1 -> 2
A7: BRADLEY Smitth | D7: OUT | I7: DUCATI PRAMAC | J7: =SUM($G$14:$G$16) -> 21 | K7: =IF(J7="",0,(RANK(J7,$J$5:$J$15)))+COUNTIF(J$5:J7,J7)-1 -> 3 | L7: =SUMIF('Emilie-Romagne'!$I$5:$I$15,Catalogne!$I7,'Emilie-Romagne'!$L$5:$L$15)+$J7 -> 114 | M7: =IF(L7="",0,(RANK(L7,$L$5:$L$15)))+COUNTIF(L$5:L7,L7)-1 -> 6
A8: PETRUCCI Danielo | B8: DUCATI TEAM | D8: 8 | G8: 8 | I8: HONDA LCR | J8: =SUM($G$20:$G$22) -> 15 | K8: =IF(J8="",0,(RANK(J8,$J$5:$J$15)))+COUNTIF(J$5:J8,J8)-1 -> 4 | L8: =SUMIF('Emilie-Romagne'!$I$5:$I$15,Catalogne!$I8,'Emilie-Romagne'!$L$5:$L$15)+$J8 -> 85 | M8: =IF(L8="",0,(RANK(L8,$L$5:$L$15)))+COUNTIF(L$5:L8,L8)-1 -> 7
A9: DEVIZIOSO Andrea | D9: OUT | I9: DUCATI TEAM | J9: =SUM($G$8:$G$10) -> 8 | K9: =IF(J9="",0,(RANK(J9,$J$5:$J$15)))+COUNTIF(J$5:J9,J9)-1 -> 5 | L9: =SUMIF('Emilie-Romagne'!$I$5:$I$15,Catalogne!$I9,'Emilie-Romagne'!$L$5:$L$15)+$J9 -> 127 | M9: =IF(L9="",0,(RANK(L9,$L$5:$L$15)))+COUNTIF(L$5:L9,L9)-1 -> 4
A10: PIRRO Michele | I10: YAMAHA FACTORY | J10: =SUM($G$32:$G$34) -> 7 | K10: =IF(J10="",0,(RANK(J10,$J$5:$J$15)))+COUNTIF(J$5:J10,J10)-1 -> 6 | L10: =SUMIF('Emilie-Romagne'!$I$5:$I$15,Catalogne!$I10,'Emilie-Romagne'!$L$5:$L$15)+$J10 -> 148 | M10: =IF(L10="",0,(RANK(L10,$L$5:$L$15)))+COUNTIF(L$5:L10,L10)-1 -> 3
A11: ZARCO Johann | B11: AVINTA RACING | D11: OUT | I11: KTM FACTORY | J11: =SUM($G$23:$G$25) -> 5 | K11: =IF(J11="",0,(RANK(J11,$J$5:$J$15)))+COUNTIF(J$5:J11,J11)-1 -> 7 | L11: =SUMIF('Emilie-Romagne'!$I$5:$I$15,Catalogne!$I11,'Emilie-Romagne'!$L$5:$L$15)+$J11 -> 115 | M11: =IF(L11="",0,(RANK(L11,$L$5:$L$15)))+COUNTIF(L$5:L11,L11)-1 -> 5
A12: RABAT Tito | D12: 15 | G12: 1 | I12: APRILIA RACING | J12: =SUM($G$5:$G$7) -> 4 | K12: =IF(J12="",0,(RANK(J12,$J$5:$J$15)))+COUNTIF(J$5:J12,J12)-1 -> 8 | L12: =SUMIF('Emilie-Romagne'!$I$5:$I$15,Catalogne!$I12,'Emilie-Romagne'!$L$5:$L$15)+$J12 -> 33 | M12: =IF(L12="",0,(RANK(L12,$L$5:$L$15)))+COUNTIF(L$5:L12,L12)-1 -> 10
I13: HONDA REPSOL | J13: =SUM($G$17:$G$19) -> 3 | K13: =IF(J13="",0,(RANK(J13,$J$5:$J$15)))+COUNTIF(J$5:J13,J13)-1 -> 9 | L13: =SUMIF('Emilie-Romagne'!$I$5:$I$15,Catalogne!$I13,'Emilie-Romagne'!$L$5:$L$15)+$J13 -> 27 | M13: =IF(L13="",0,(RANK(L13,$L$5:$L$15)))+COUNTIF(L$5:L13,L13)-1 -> 11
A14: BAGNAIA Pecco | B14: DUCATI PRAMAC | D14: 6 | G14: 10 | I14: KTM TECH3 | J14: =SUM($G$26:$G$28) -> 2 | K14: =IF(J14="",0,(RANK(J14,$J$5:$J$15)))+COUNTIF(J$5:J14,J14)-1 -> 10 | L14: =SUMIF('Emilie-Romagne'!$I$5:$I$15,Catalogne!$I14,'Emilie-Romagne'!$L$5:$L$15)+$J14 -> 76 | M14: =IF(L14="",0,(RANK(L14,$L$5:$L$15)))+COUNTIF(L$5:L14,L14)-1 -> 8
A15: MILLER Jack | D15: 5 | G15: 11 | I15: AVINTIA RACING | J15: =SUM($G$11:$G$13) -> 1 | K15: =IF(J15="",0,(RANK(J15,$J$5:$J$15)))+COUNTIF(J$5:J15,J15)-1 -> 11 | L15: =SUMIF('Emilie-Romagne'!$I$5:$I$15,Catalogne!$I15,'Emilie-Romagne'!$L$5:$L$15)+$J15 -> 44 | M15: =IF(L15="",0,(RANK(L15,$L$5:$L$15)))+COUNTIF(L$5:L15,L15)-1 -> 9
A17: MARQUES Alex | B17: HONDA REPSOL | D17: 13 | G17: 3
A18: MARQUES Marc
A19: BRADL Stephan
A20: CRUTCHLOW Cal | B20: HONDA LCR | D20: 10 | G20: 6
A21: NAKAGAMI Takaaki | D21: 7 | G21: 9
A23: BINDER Brad | B23: KTM FACTORY | D23: 11 | G23: 5
A24: ESPARGARO Pol | D24: OUT
A26: LEKUONA Iker | B26: KTM TECH3 | D26: 14 | G26: 2
A27: OLIVEIRA Miguel
A29: MIR Joan | B29: SUZUKI TEAM | D29: 2 | G29: 20
A30: RINS Alex | D30: 3 | G30: 16
A32: ROSSI Valentino | B32: YAMAHA FACTORY | D32: OUT
A33: VINALES Maverick | D33: 9 | G33: 7
A35: QUARTARARO Fabio | B35: YAMAHA PETRONAS | D35: 1 | G35: 25
A36: MORBIDELLI Franco | D36: 4 | E36: 1 | G36: 13

Sheet France
A1: BUGATTI - 11 OCTOBRE 2020
A3: PILOTES | B3: ECURIES | C3: MOTOS | D3: Finish | E3: Pôle | F3: Pt tour | G3: Points | I3: CLASSEMENT
H4: =IF(G4="","",(RANK(G4,G4:G23))) ->  | I4: ÉCURIES | J4: POINTS | K4: RANG | L4: TOTAL | M4: PONCTUEL
A5: IANNONE Andrea | B5: APRILIA RACING | G5: =IFERROR(CHOOSE(D5,25,20,16,13,11,10,9,8,7,6,5,4,3,2,1)+(F5=1),"") ->  | I5: DUCATI TEAM | J5: =SUM($G$8:$G$10) -> 38 | K5: =IF(J5="",0,(RANK(J5,$J$5:$J$15)))+COUNTIF(J$5:J5,J5)-1 -> 1 | L5: =SUMIF(Catalogne!$I$5:$I$15,France!$I5,Catalogne!$L$5:$L$14)+$J5 -> 165 | M5: =IF(L5="",0,(RANK(L5,$L$5:$L$15)))+COUNTIF(L$5:L5,L5)-1 -> 2
A6: ESPARGARO Aleix | D6: 14 | G6: =IFERROR(CHOOSE(D6,25,20,16,13,11,10,9,8,7,6,5,4,3,2,1)+(F6=1),"") -> 2 | I6: HONDA REPSOL | J6: =SUM($G$17:$G$19) -> 28 | K6: =IF(J6="",0,(RANK(J6,$J$5:$J$15)))+COUNTIF(J$5:J6,J6)-1 -> 2 | L6: =SUMIF(Catalogne!$I$5:$I$15,France!$I6,Catalogne!$L$5:$L$14)+$J6 -> 55 | M6: =IF(L6="",0,(RANK(L6,$L$5:$L$15)))+COUNTIF(L$5:L6,L6)-1 -> 9
A7: BRADLEY Smitth | D7: OUT | I7: KTM FACTORY | J7: =SUM($G$23:$G$25) -> 20 | K7: =IF(J7="",0,(RANK(J7,$J$5:$J$15)))+COUNTIF(J$5:J7,J7)-1 -> 3 | L7: =SUMIF(Catalogne!$I$5:$I$15,France!$I7,Catalogne!$L$5:$L$14)+$J7 -> 135 | M7: =IF(L7="",0,(RANK(L7,$L$5:$L$15)))+COUNTIF(L$5:L7,L7)-1 -> 5
A8: PETRUCCI Danielo | B8: DUCATI TEAM | D8: 1 | G8: 25 | I8: AVINTIA RACING | J8: =SUM($G$11:$G$13) -> 11 | K8: =IF(J8="",0,(RANK(J8,$J$5:$J$15)))+COUNTIF(J$5:J8,J8)-1 -> 4 | L8: =SUMIF(Catalogne!$I$5:$I$15,France!$I8,Catalogne!$L$5:$L$14)+$J8 -> 55 | M8: =IF(L8="",0,(RANK(L8,$L$5:$L$15)))+COUNTIF(L$5:L8,L8)-1 -> 10
A9: DEVIZIOSO Andrea | D9: 4 | G9: 13 | I9: KTM TECH3 | J9: =SUM($G$26:$G$28) -> 10 | K9: =IF(J9="",0,(RANK(J9,$J$5:$J$15)))+COUNTIF(J$5:J9,J9)-1 -> 5 | L9: =SUMIF(Catalogne!$I$5:$I$15,France!$I9,Catalogne!$L$5:$L$14)+$J9 -> 86 | M9: =IF(L9="",0,(RANK(L9,$L$5:$L$15)))+COUNTIF(L$5:L9,L9)-1 -> 8
A10: PIRRO Michele | I10: HONDA LCR | J10: =SUM($G$20:$G$22) -> 9 | K10: =IF(J10="",0,(RANK(J10,$J$5:$J$15)))+COUNTIF(J$5:J10,J10)-1 -> 6 | L10: =SUMIF(Catalogne!$I$5:$I$15,France!$I10,Catalogne!$L$5:$L$14)+$J10 -> 94 | M10: =IF(L10="",0,(RANK(L10,$L$5:$L$15)))+COUNTIF(L$5:L10,L10)-1 -> 7
A11: ZARCO Johann | B11: AVINTIA RACING | D11: 5 | G11: 11 | I11: YAMAHA PETRONAS | J11: =SUM($G$35:$G$37) -> 7 | K11: =IF(J11="",0,(RANK(J11,$J$5:$J$15)))+COUNTIF(J$5:J11,J11)-1 -> 7 | L11: =SUMIF(Catalogne!$I$5:$I$15,France!$I11,Catalogne!$L$5:$L$14)+$J11 -> 192 | M11: =IF(L11="",0,(RANK(L11,$L$5:$L$15)))+COUNTIF(L$5:L11,L11)-1 -> 1
A12: RABAT Tito | D12: OUT | I12: YAMAHA FACTORY | J12: =SUM($G$32:$G$34) -> 6 | K12: =IF(J12="",0,(RANK(J12,$J$5:$J$15)))+COUNTIF(J$5:J12,J12)-1 -> 8 | L12: =SUMIF(Catalogne!$I$5:$I$15,France!$I12,Catalogne!$L$5:$L$14)+$J12 -> 154 | M12: =IF(L12="",0,(RANK(L12,$L$5:$L$15)))+COUNTIF(L$5:L12,L12)-1 -> 4
I13: SUZUKI TEAM | J13: =SUM($G$29:$G$31) -> 5 | K13: =IF(J13="",0,(RANK(J13,$J$5:$J$15)))+COUNTIF(J$5:J13,J13)-1 -> 9 | L13: =SUMIF(Catalogne!$I$5:$I$15,France!$I13,Catalogne!$L$5:$L$14)+$J13 -> 165 | M13: =IF(L13="",0,(RANK(L13,$L$5:$L$15)))+COUNTIF(L$5:L13,L13)-1 -> 3
A14: BAGNAIA Pecco | B14: DUCATI PRAMAC | D14: 13 | G14: 3 | I14: DUCATI PRAMAC | J14: =SUM($G$14:$G$16) -> 3 | K14: =IF(J14="",0,(RANK(J14,$J$5:$J$15)))+COUNTIF(J$5:J14,J14)-1 -> 10 | L14: =SUMIF(Catalogne!$I$5:$I$15,France!$I14,Catalogne!$L$5:$L$14)+$J14 -> 117 | M14: =IF(L14="",0,(RANK(L14,$L$5:$L$15)))+COUNTIF(L$5:L14,L14)-1 -> 6
A15: MILLER Jack | D15: OUT | I15: APRILIA RACING | J15: =SUM($G$5:$G$7) -> 2 | K15: =IF(J15="",0,(RANK(J15,$J$5:$J$15)))+COUNTIF(J$5:J15,J15)-1 -> 11 | L15: =SUMIF(Catalogne!$I$5:$I$15,France!$I15,Catalogne!$L$5:$L$14)+$J15 -> 35 | M15: =IF(L15="",0,(RANK(L15,$L$5:$L$15)))+COUNTIF(L$5:L15,L15)-1 -> 11
A17: MARQUES Alex | B17: HONDA REPSOL | D17: 2 | G17: 20
A18: MARQUES Marc
A19: BRADL Stephan | D19: 8 | G19: 8
A20: CRUTCHLOW Cal | B20: HONDA LCR | D20: OUT
A21: NAKAGAMI Takaaki | D21: 7 | G21: 9
A23: BINDER Brad | B23: KTM FACTORY | D23: 12 | G23: 4
A24: ESPARGARO Pol | D24: 3 | G24: 16
A26: LEKUONA Iker | B26: KTM TECH3 | D26: 16
A27: OLIVEIRA Miguel | D27: 6 | G27: 10
A29: MIR Joan | B29: SUZUKI TEAM | D29: 11 | G29: 5
A30: RINS Alex | D30: 16
A32: ROSSI Valentino | B32: YAMAHA FACTORY | D32: OUT
A33: VINALES Maverick | D33: 10 | G33: 6
A35: QUARTARARO Fabio | B35: YAMAHA PETRONAS | D35: 9 | E35: 1 | G35: 7
A36: MORBIDELLI Franco | D36: OUT

Sheet Aragon
A1: ARAGON - 18 OCTOBRE 2020
A3: PILOTES | B3: ECURIES | C3: MOTOS | D3: Finish | E3: Pôle | F3: Pt tour | G3: Points | I3: CLASSEMENT
H4: =IF(G4="","",(RANK(G4,G4:G23))) ->  | I4: ÉCURIES | J4: POINTS | K4: RANG | L4: TOTAL | M4: PONCTUEL
A5: IANNONE Andrea | B5: APRILIA RACING | G5: =IFERROR(CHOOSE(D5,25,20,16,13,11,10,9,8,7,6,5,4,3,2,1)+(F5=1),"") ->  | I5: YAMAHA PETRONAS | J5: =SUM($G$35:$G$37) -> 0 | K5: =IF(J5="",0,(RANK(J5,$J$5:$J$14)))+COUNTIF(J$5:J5,J5)-1 -> 1 | L5: =SUMIF(France!$I$5:$I$15,Aragon!$I5,France!$L$5:$L$14)+$J5 -> 192 | M5: =IF(L5="",0,(RANK(L5,$L$5:$L$15)))+COUNTIF(L$5:L5,L5)-1 -> 1
A6: ESPARGARO Aleix | G6: =IFERROR(CHOOSE(D6,25,20,16,13,11,10,9,8,7,6,5,4,3,2,1)+(F6=1),"") ->  | I6: DUCATI TEAM | J6: =SUM($G$8:$G$10) -> 0 | K6: =IF(J6="",0,(RANK(J6,$J$5:$J$14)))+COUNTIF(J$5:J6,J6)-1 -> 2 | L6: =SUMIF(France!$I$5:$I$15,Aragon!$I6,France!$L$5:$L$14)+$J6 -> 165 | M6: =IF(L6="",0,(RANK(L6,$L$5:$L$15)))+COUNTIF(L$5:L6,L6)-1 -> 2
A7: BRADLEY Smitth | I7: DUCATI PRAMAC | J7: =SUM($G$14:$G$16) -> 0 | K7: =IF(J7="",0,(RANK(J7,$J$5:$J$14)))+COUNTIF(J$5:J7,J7)-1 -> 3 | L7: =SUMIF(France!$I$5:$I$15,Aragon!$I7,France!$L$5:$L$14)+$J7 -> 117 | M7: =IF(L7="",0,(RANK(L7,$L$5:$L$15)))+COUNTIF(L$5:L7,L7)-1 -> 6
A8: PETRUCCI Danielo | B8: DUCATI TEAM | I8: YAMAHA FACTORY | J8: =SUM($G$32:$G$34) -> 0 | K8: =IF(J8="",0,(RANK(J8,$J$5:$J$14)))+COUNTIF(J$5:J8,J8)-1 -> 4 | L8: =SUMIF(France!$I$5:$I$15,Aragon!$I8,France!$L$5:$L$14)+$J8 -> 154 | M8: =IF(L8="",0,(RANK(L8,$L$5:$L$15)))+COUNTIF(L$5:L8,L8)-1 -> 4
A9: DEVIZIOSO Andrea | I9: KTM FACTORY | J9: =SUM($G$14:$G$16) -> 0 | K9: =IF(J9="",0,(RANK(J9,$J$5:$J$14)))+COUNTIF(J$5:J9,J9)-1 -> 5 | L9: =SUMIF(France!$I$5:$I$15,Aragon!$I9,France!$L$5:$L$14)+$J9 -> 135 | M9: =IF(L9="",0,(RANK(L9,$L$5:$L$15)))+COUNTIF(L$5:L9,L9)-1 -> 5
A10: PIRRO Michele | I10: KTM TECH3 | J10: =SUM($G$26:$G$28) -> 0 | K10: =IF(J10="",0,(RANK(J10,$J$5:$J$14)))+COUNTIF(J$5:J10,J10)-1 -> 6 | L10: =SUMIF(France!$I$5:$I$15,Aragon!$I10,France!$L$5:$L$14)+$J10 -> 86 | M10: =IF(L10="",0,(RANK(L10,$L$5:$L$15)))+COUNTIF(L$5:L10,L10)-1 -> 8
A11: ZARCO Johann | B11: AVINTIA RACING | I11: HONDA LCR | J11: =SUM($G$20:$G$22) -> 0 | K11: =IF(J11="",0,(RANK(J11,$J$5:$J$14)))+COUNTIF(J$5:J11,J11)-1 -> 7 | L11: =SUMIF(France!$I$5:$I$15,Aragon!$I11,France!$L$5:$L$14)+$J11 -> 94 | M11: =IF(L11="",0,(RANK(L11,$L$5:$L$15)))+COUNTIF(L$5:L11,L11)-1 -> 7
A12: RABAT Tito | I12: HONDA REPSOL | J12: =SUM($G$17:$G$19) -> 0 | K12: =IF(J12="",0,(RANK(J12,$J$5:$J$14)))+COUNTIF(J$5:J12,J12)-1 -> 8 | L12: =SUMIF(France!$I$5:$I$15,Aragon!$I12,France!$L$5:$L$14)+$J12 -> 55 | M12: =IF(L12="",0,(RANK(L12,$L$5:$L$15)))+COUNTIF(L$5:L12,L12)-1 -> 9
I13: AVINTIA RACING | J13: =SUM($G$11:$G$13) -> 0 | K13: =IF(J13="",0,(RANK(J13,$J$5:$J$14)))+COUNTIF(J$5:J13,J13)-1 -> 9 | L13: =SUMIF(France!$I$5:$I$15,Aragon!$I13,France!$L$5:$L$14)+$J13 -> 55 | M13: =IF(L13="",0,(RANK(L13,$L$5:$L$15)))+COUNTIF(L$5:L13,L13)-1 -> 10
A14: BAGNAIA Pecco | B14: DUCATI PRAMAC | I14: APRILIA RACING | J14: =SUM($G$5:$G$7) -> 0 | K14: =IF(J14="",0,(RANK(J14,$J$5:$J$14)))+COUNTIF(J$5:J14,J14)-1 -> 10 | L14: =SUMIF(France!$I$5:$I$15,Aragon!$I14,France!$L$5:$L$14)+$J14 -> 35 | M14: =IF(L14="",0,(RANK(L14,$L$5:$L$15)))+COUNTIF(L$5:L14,L14)-1 -> 11
A15: MILLER Jack | I15: SUZUKI TEAM | J15: =SUM($G$29:$G$31) -> 0 | K15: =IF(J15="",0,(RANK(J15,$J$5:$J$14)))+COUNTIF(J$5:J15,J15)-1 -> 11 | L15: =SUMIF(France!$I$5:$I$15,Aragon!$I15,France!$L$5:$L$14)+$J15 -> 165 | M15: =IF(L15="",0,(RANK(L15,$L$5:$L$15)))+COUNTIF(L$5:L15,L15)-1 -> 3
A17: MARQUES Alex | B17: HONDA REPSOL
A18: MARQUES Marc
A19: BRADL Stephan
A20: CRUTCHLOW Cal | B20: HONDA LCR
A21: NAKAGAMI Takaaki
A23: BINDER Brad | B23: KTM FACTORY
A24: ESPARGARO Pol
A26: LEKUONA Iker | B26: KTM TECH3
A27: OLIVEIRA Miguel
A29: MIR Joan | B29: SUZUKI TEAM
A30: RINS Alex
A32: ROSSI Valentino | B32: YAMAHA FACTORY
A33: VINALES Maverick
A35: QUARTARARO Fabio | B35: YAMAHA PETRONAS | E35: 1
A36: MORBIDELLI Franco
G37: =IFERROR(CHOOSE(D37,25,20,16,13,11,10,9,8,7,6,5,4,3,2,1)+(F37=1),"") -> 

Sheet Teruel
A1: ARAGON - 25 OCTOBRE 2020
A3: PILOTES | B3: ECURIES | C3: MOTOS | D3: Finish | E3: Pôle | F3: Pt tour | G3: Points | I3: CLASSEMENT
H4: =IF(G4="","",(RANK(G4,G4:G23))) ->  | I4: ÉCURIES | J4: POINTS | K4: RANG | L4: TOTAL | M4: PONCTUEL
A5: IANNONE Andrea | B5: APRILIA RACING | G5: =IFERROR(CHOOSE(D5,25,20,16,13,11,10,9,8,7,6,5,4,3,2,1)+(F5=1),"") ->  | I5: YAMAHA PETRONAS | J5: =SUM($G$35:$G$37) -> 0 | K5: =IF(J5="",0,(RANK(J5,$J$5:$J$15)))+COUNTIF(J$5:J5,J5)-1 -> 1 | L5: =SUMIF(Aragon!$I$5:$I$15,Teruel!$I5,Aragon!$L$5:$L$15)+$J5 -> 192 | M5: =IF(L5="",0,(RANK(L5,$L$5:$L$15)))+COUNTIF(L$5:L5,L5)-1 -> 1
A6: ESPARGARO Aleix | G6: =IFERROR(CHOOSE(D6,25,20,16,13,11,10,9,8,7,6,5,4,3,2,1)+(F6=1),"") ->  | I6: DUCATI TEAM | J6: =SUM($G$5:$G$7) -> 0 | K6: =IF(J6="",0,(RANK(J6,$J$5:$J$15)))+COUNTIF(J$5:J6,J6)-1 -> 2 | L6: =SUMIF(Aragon!$I$5:$I$15,Teruel!$I6,Aragon!$L$5:$L$15)+$J6 -> 165 | M6: =IF(L6="",0,(RANK(L6,$L$5:$L$15)))+COUNTIF(L$5:L6,L6)-1 -> 2
A7: BRADLEY Smitth | I7: DUCATI PRAMAC | J7: =SUM($G$8:$G$10) -> 0 | K7: =IF(J7="",0,(RANK(J7,$J$5:$J$15)))+COUNTIF(J$5:J7,J7)-1 -> 3 | L7: =SUMIF(Aragon!$I$5:$I$15,Teruel!$I7,Aragon!$L$5:$L$15)+$J7 -> 117 | M7: =IF(L7="",0,(RANK(L7,$L$5:$L$15)))+COUNTIF(L$5:L7,L7)-1 -> 6
A8: PETRUCCI Danielo | B8: DUCATI TEAM | I8: YAMAHA FACTORY | J8: =SUM($G$11:$G$13) -> 0 | K8: =IF(J8="",0,(RANK(J8,$J$5:$J$15)))+COUNTIF(J$5:J8,J8)-1 -> 4 | L8: =SUMIF(Aragon!$I$5:$I$15,Teruel!$I8,Aragon!$L$5:$L$15)+$J8 -> 154 | M8: =IF(L8="",0,(RANK(L8,$L$5:$L$15)))+COUNTIF(L$5:L8,L8)-1 -> 4
A9: DEVIZIOSO Andrea | I9: KTM FACTORY | J9: =SUM($G$14:$G$16) -> 0 | K9: =IF(J9="",0,(RANK(J9,$J$5:$J$15)))+COUNTIF(J$5:J9,J9)-1 -> 5 | L9: =SUMIF(Aragon!$I$5:$I$15,Teruel!$I9,Aragon!$L$5:$L$15)+$J9 -> 135 | M9: =IF(L9="",0,(RANK(L9,$L$5:$L$15)))+COUNTIF(L$5:L9,L9)-1 -> 5
A10: PIRRO Michele | I10: KTM TECH3 | J10: =SUM($G$20:$G$22) -> 0 | K10: =IF(J10="",0,(RANK(J10,$J$5:$J$15)))+COUNTIF(J$5:J10,J10)-1 -> 6 | L10: =SUMIF(Aragon!$I$5:$I$15,Teruel!$I10,Aragon!$L$5:$L$15)+$J10 -> 86 | M10: =IF(L10="",0,(RANK(L10,$L$5:$L$15)))+COUNTIF(L$5:L10,L10)-1 -> 8
A11: ZARCO Johann | B11: AVINTIA RACING | I11: HONDA LCR | J11: =SUM($G$23:$G$25) -> 0 | K11: =IF(J11="",0,(RANK(J11,$J$5:$J$15)))+COUNTIF(J$5:J11,J11)-1 -> 7 | L11: =SUMIF(Aragon!$I$5:$I$15,Teruel!$I11,Aragon!$L$5:$L$15)+$J11 -> 94 | M11: =IF(L11="",0,(RANK(L11,$L$5:$L$15)))+COUNTIF(L$5:L11,L11)-1 -> 7
A12: RABAT Tito | I12: HONDA REPSOL | J12: =SUM($G$26:$G$28) -> 0 | K12: =IF(J12="",0,(RANK(J12,$J$5:$J$15)))+COUNTIF(J$5:J12,J12)-1 -> 8 | L12: =SUMIF(Aragon!$I$5:$I$15,Teruel!$I12,Aragon!$L$5:$L$15)+$J12 -> 55 | M12: =IF(L12="",0,(RANK(L12,$L$5:$L$15)))+COUNTIF(L$5:L12,L12)-1 -> 9
I13: APRILIA RACING | J13: =SUM($G$29:$G$31) -> 0 | K13: =IF(J13="",0,(RANK(J13,$J$5:$J$15)))+COUNTIF(J$5:J13,J13)-1 -> 9 | L13: =SUMIF(Aragon!$I$5:$I$15,Teruel!$I13,Aragon!$L$5:$L$15)+$J13 -> 35 | M13: =IF(L13="",0,(RANK(L13,$L$5:$L$15)))+COUNTIF(L$5:L13,L13)-1 -> 11
A14: BAGNAIA Pecco | B14: DUCATI PRAMAC | I14: AVINTIA RACING | J14: =SUM($G$32:$G$34) -> 0 | K14: =IF(J14="",0,(RANK(J14,$J$5:$J$15)))+COUNTIF(J$5:J14,J14)-1 -> 10 | L14: =SUMIF(Aragon!$I$5:$I$15,Teruel!$I14,Aragon!$L$5:$L$15)+$J14 -> 55 | M14: =IF(L14="",0,(RANK(L14,$L$5:$L$15)))+COUNTIF(L$5:L14,L14)-1 -> 10
A15: MILLER Jack | I15: SUZUKI TEAM | J15: =SUM($G$32:$G$34) -> 0 | K15: =IF(J15="",0,(RANK(J15,$J$5:$J$15)))+COUNTIF(J$5:J15,J15)-1 -> 11 | L15: =SUMIF(Aragon!$I$5:$I$15,Teruel!$I15,Aragon!$L$5:$L$15)+$J15 -> 165 | M15: =IF(L15="",0,(RANK(L15,$L$5:$L$15)))+COUNTIF(L$5:L15,L15)-1 -> 3
A17: MARQUES Alex | B17: HONDA REPSOL
A18: MARQUES Marc
A19: BRADL Stephan
A20: CRUTCHLOW Cal | B20: HONDA LCR
A21: NAKAGAMI Takaaki
A23: BINDER Brad | B23: KTM FACTORY
A24: ESPARGARO Pol
A26: LEKUONA Iker | B26: KTM TECH3
A27: OLIVEIRA Miguel
A29: MIR Joan | B29: SUZUKI TEAM
A30: RINS Alex
A32: ROSSI Valentino | B32: YAMAHA FACTORY
A33: VINALES Maverick
A35: QUARTARARO Fabio | B35: YAMAHA PETRONAS
A36: MORBIDELLI Franco

Sheet Europe
A1: VALENCE - 08 NOVEMBRE 2020
A3: PILOTES | B3: ECURIES | C3: MOTOS | D3: Finish | E3: Pôle | F3: Pt tour | G3: Points | I3: CLASSEMENT
H4: =IF(G4="","",(RANK(G4,G4:G23))) ->  | I4: ÉCURIES | J4: POINTS | K4: RANG | L4: TOTAL | M4: PONCTUEL
A5: IANNONE Andrea | B5: APRILIA RACING | G5: =IFERROR(CHOOSE(D5,25,20,16,13,11,10,9,8,7,6,5,4,3,2,1)+(F5=1),"") ->  | I5: YAMAHA PETRONAS | J5: =SUM($G$17:$G$19) -> 0 | K5: =IF(J5="",0,(RANK(J5,$J$5:$J$15)))+COUNTIF(J$5:J5,J5)-1 -> 1 | L5: =SUMIF(Teruel!$I$5:$I$15,Europe!$I5,Teruel!$L$5:$L$15)+$J5 -> 192 | M5: =IF(L5="",0,(RANK(L5,$L$5:$L$15)))+COUNTIF(L$5:L5,L5)-1 -> 1
A6: ESPARGARO Aleix | G6: =IFERROR(CHOOSE(D6,25,20,16,13,11,10,9,8,7,6,5,4,3,2,1)+(F6=1),"") ->  | I6: DUCATI TEAM | J6: =SUM($G$5:$G$7) -> 0 | K6: =IF(J6="",0,(RANK(J6,$J$5:$J$15)))+COUNTIF(J$5:J6,J6)-1 -> 2 | L6: =SUMIF(Teruel!$I$5:$I$15,Europe!$I6,Teruel!$L$5:$L$15)+$J6 -> 165 | M6: =IF(L6="",0,(RANK(L6,$L$5:$L$15)))+COUNTIF(L$5:L6,L6)-1 -> 2
A7: BRADLEY Smitth | I7: DUCATI PRAMAC | J7: =SUM($G$8:$G$10) -> 0 | K7: =IF(J7="",0,(RANK(J7,$J$5:$J$15)))+COUNTIF(J$5:J7,J7)-1 -> 3 | L7: =SUMIF(Teruel!$I$5:$I$15,Europe!$I7,Teruel!$L$5:$L$15)+$J7 -> 117 | M7: =IF(L7="",0,(RANK(L7,$L$5:$L$15)))+COUNTIF(L$5:L7,L7)-1 -> 6
A8: PETRUCCI Danielo | B8: DUCATI TEAM | I8: YAMAHA FACTORY | J8: =SUM($G$11:$G$13) -> 0 | K8: =IF(J8="",0,(RANK(J8,$J$5:$J$15)))+COUNTIF(J$5:J8,J8)-1 -> 4 | L8: =SUMIF(Teruel!$I$5:$I$15,Europe!$I8,Teruel!$L$5:$L$15)+$J8 -> 154 | M8: =IF(L8="",0,(RANK(L8,$L$5:$L$15)))+COUNTIF(L$5:L8,L8)-1 -> 4
A9: DEVIZIOSO Andrea | I9: KTM FACTORY | J9: =SUM($G$14:$G$16) -> 0 | K9: =IF(J9="",0,(RANK(J9,$J$5:$J$15)))+COUNTIF(J$5:J9,J9)-1 -> 5 | L9: =SUMIF(Teruel!$I$5:$I$15,Europe!$I9,Teruel!$L$5:$L$15)+$J9 -> 135 | M9: =IF(L9="",0,(RANK(L9,$L$5:$L$15)))+COUNTIF(L$5:L9,L9)-1 -> 5
A10: PIRRO Michele | I10: KTM TECH3 | J10: =SUM($G$20:$G$22) -> 0 | K10: =IF(J10="",0,(RANK(J10,$J$5:$J$15)))+COUNTIF(J$5:J10,J10)-1 -> 6 | L10: =SUMIF(Teruel!$I$5:$I$15,Europe!$I10,Teruel!$L$5:$L$15)+$J10 -> 86 | M10: =IF(L10="",0,(RANK(L10,$L$5:$L$15)))+COUNTIF(L$5:L10,L10)-1 -> 8
A11: ZARCO Johann | B11: AVINTIA RACING | I11: HONDA LCR | J11: =SUM($G$23:$G$25) -> 0 | K11: =IF(J11="",0,(RANK(J11,$J$5:$J$15)))+COUNTIF(J$5:J11,J11)-1 -> 7 | L11: =SUMIF(Teruel!$I$5:$I$15,Europe!$I11,Teruel!$L$5:$L$15)+$J11 -> 94 | M11: =IF(L11="",0,(RANK(L11,$L$5:$L$15)))+COUNTIF(L$5:L11,L11)-1 -> 7
A12: RABAT Tito | I12: HONDA REPSOL | J12: =SUM($G$26:$G$28) -> 0 | K12: =IF(J12="",0,(RANK(J12,$J$5:$J$15)))+COUNTIF(J$5:J12,J12)-1 -> 8 | L12: =SUMIF(Teruel!$I$5:$I$15,Europe!$I12,Teruel!$L$5:$L$15)+$J12 -> 55 | M12: =IF(L12="",0,(RANK(L12,$L$5:$L$15)))+COUNTIF(L$5:L12,L12)-1 -> 9
I13: AVINTIA RACING | J13: =SUM($G$29:$G$31) -> 0 | K13: =IF(J13="",0,(RANK(J13,$J$5:$J$15)))+COUNTIF(J$5:J13,J13)-1 -> 9 | L13: =SUMIF(Teruel!$I$5:$I$15,Europe!$I13,Teruel!$L$5:$L$15)+$J13 -> 55 | M13: =IF(L13="",0,(RANK(L13,$L$5:$L$15)))+COUNTIF(L$5:L13,L13)-1 -> 10
A14: BAGNAIA Pecco | B14: DUCATI PRAMAC | I14: APRILIA RACING | J14: =SUM($G$32:$G$34) -> 0 | K14: =IF(J14="",0,(RANK(J14,$J$5:$J$15)))+COUNTIF(J$5:J14,J14)-1 -> 10 | L14: =SUMIF(Teruel!$I$5:$I$15,Europe!$I14,Teruel!$L$5:$L$15)+$J14 -> 35 | M14: =IF(L14="",0,(RANK(L14,$L$5:$L$15)))+COUNTIF(L$5:L14,L14)-1 -> 11
A15: MILLER Jack | I15: SUZUKI TEAM | J15: =SUM($G$32:$G$34) -> 0 | K15: =IF(J15="",0,(RANK(J15,$J$5:$J$15)))+COUNTIF(J$5:J15,J15)-1 -> 11 | L15: =SUMIF(Teruel!$I$5:$I$15,Europe!$I15,Teruel!$L$5:$L$15)+$J15 -> 165 | M15: =IF(L15="",0,(RANK(L15,$L$5:$L$15)))+COUNTIF(L$5:L15,L15)-1 -> 3
A17: MARQUES Alex | B17: HONDA REPSOL
A18: MARQUES Marc
A19: BRADL Stephan
A20: CRUTCHLOW Cal | B20: HONDA LCR
A21: NAKAGAMI Takaaki
A23: BINDER Brad | B23: KTM FACTORY
A24: ESPARGARO Pol
A26: LEKUONA Iker | B26: KTM TECH3
A27: OLIVEIRA Miguel
A29: MIR Joan | B29: SUZUKI TEAM
A30: RINS Alex
A32: ROSSI Valentino | B32: YAMAHA FACTORY
A33: VINALES Maverick
A35: QUARTARARO Fabio | B35: YAMAHA PETRONAS
A36: MORBIDELLI Franco

Sheet Valence
A1: VALENCE - 15 NOVEMBRE 2020
A3: PILOTES | B3: ECURIES | C3: MOTOS | D3: Finish | E3: Pôle | F3: Pt tour | G3: Points | I3: CLASSEMENT
H4: =IF(G4="","",(RANK(G4,G4:G23))) ->  | I4: ÉCURIES | J4: POINTS | K4: RANG | L4: TOTAL | M4: PONCTUEL
A5: IANNONE Andrea | B5: APRILIA RACING | G5: =IFERROR(CHOOSE(D5,25,20,16,13,11,10,9,8,7,6,5,4,3,2,1)+(F5=1),"") ->  | I5: YAMAHA PETRONAS | J5: =SUM($G$17:$G$19) -> 0 | K5: =IF(J5="",0,(RANK(J5,$J$5:$J$15)))+COUNTIF(J$5:J5,J5)-1 -> 1 | L5: =SUMIF(Europe!$I$5:$I$15,Valence!$I5,Europe!$L$5:$L$15)+$J5 -> 192 | M5: =IF(L5="",0,(RANK(L5,$L$5:$L$15)))+COUNTIF(L$5:L5,L5)-1 -> 1
A6: ESPARGARO Aleix | G6: =IFERROR(CHOOSE(D6,25,20,16,13,11,10,9,8,7,6,5,4,3,2,1)+(F6=1),"") ->  | I6: DUCATI TEAM | J6: =SUM($G$5:$G$7) -> 0 | K6: =IF(J6="",0,(RANK(J6,$J$5:$J$15)))+COUNTIF(J$5:J6,J6)-1 -> 2 | L6: =SUMIF(Europe!$I$5:$I$15,Valence!$I6,Europe!$L$5:$L$15)+$J6 -> 165 | M6: =IF(L6="",0,(RANK(L6,$L$5:$L$15)))+COUNTIF(L$5:L6,L6)-1 -> 2
A7: BRADLEY Smitth | I7: DUCATI PRAMAC | J7: =SUM($G$8:$G$10) -> 0 | K7: =IF(J7="",0,(RANK(J7,$J$5:$J$15)))+COUNTIF(J$5:J7,J7)-1 -> 3 | L7: =SUMIF(Europe!$I$5:$I$15,Valence!$I7,Europe!$L$5:$L$15)+$J7 -> 117 | M7: =IF(L7="",0,(RANK(L7,$L$5:$L$15)))+COUNTIF(L$5:L7,L7)-1 -> 6
A8: PETRUCCI Danielo | B8: DUCATI TEAM | I8: YAMAHA FACTORY | J8: =SUM($G$11:$G$13) -> 0 | K8: =IF(J8="",0,(RANK(J8,$J$5:$J$15)))+COUNTIF(J$5:J8,J8)-1 -> 4 | L8: =SUMIF(Europe!$I$5:$I$15,Valence!$I8,Europe!$L$5:$L$15)+$J8 -> 154 | M8: =IF(L8="",0,(RANK(L8,$L$5:$L$15)))+COUNTIF(L$5:L8,L8)-1 -> 4
A9: DEVIZIOSO Andrea | I9: KTM FACTORY | J9: =SUM($G$14:$G$16) -> 0 | K9: =IF(J9="",0,(RANK(J9,$J$5:$J$15)))+COUNTIF(J$5:J9,J9)-1 -> 5 | L9: =SUMIF(Europe!$I$5:$I$15,Valence!$I9,Europe!$L$5:$L$15)+$J9 -> 135 | M9: =IF(L9="",0,(RANK(L9,$L$5:$L$15)))+COUNTIF(L$5:L9,L9)-1 -> 5
A10: PIRRO Michele | I10: KTM TECH3 | J10: =SUM($G$20:$G$22) -> 0 | K10: =IF(J10="",0,(RANK(J10,$J$5:$J$15)))+COUNTIF(J$5:J10,J10)-1 -> 6 | L10: =SUMIF(Europe!$I$5:$I$15,Valence!$I10,Europe!$L$5:$L$15)+$J10 -> 86 | M10: =IF(L10="",0,(RANK(L10,$L$5:$L$15)))+COUNTIF(L$5:L10,L10)-1 -> 8
A11: ZARCO Johann | B11: AVINTIA RACING | I11: HONDA LCR | J11: =SUM($G$23:$G$25) -> 0 | K11: =IF(J11="",0,(RANK(J11,$J$5:$J$15)))+COUNTIF(J$5:J11,J11)-1 -> 7 | L11: =SUMIF(Europe!$I$5:$I$15,Valence!$I11,Europe!$L$5:$L$15)+$J11 -> 94 | M11: =IF(L11="",0,(RANK(L11,$L$5:$L$15)))+COUNTIF(L$5:L11,L11)-1 -> 7
A12: RABAT Tito | I12: HONDA REPSOL | J12: =SUM($G$26:$G$28) -> 0 | K12: =IF(J12="",0,(RANK(J12,$J$5:$J$15)))+COUNTIF(J$5:J12,J12)-1 -> 8 | L12: =SUMIF(Europe!$I$5:$I$15,Valence!$I12,Europe!$L$5:$L$15)+$J12 -> 55 | M12: =IF(L12="",0,(RANK(L12,$L$5:$L$15)))+COUNTIF(L$5:L12,L12)-1 -> 9
I13: AVINTIA RACING | J13: =SUM($G$29:$G$31) -> 0 | K13: =IF(J13="",0,(RANK(J13,$J$5:$J$15)))+COUNTIF(J$5:J13,J13)-1 -> 9 | L13: =SUMIF(Europe!$I$5:$I$15,Valence!$I13,Europe!$L$5:$L$15)+$J13 -> 55 | M13: =IF(L13="",0,(RANK(L13,$L$5:$L$15)))+COUNTIF(L$5:L13,L13)-1 -> 10
A14: BAGNAIA Pecco | B14: DUCATI PRAMAC | I14: APRILIA RACING | J14: =SUM($G$32:$G$34) -> 0 | K14: =IF(J14="",0,(RANK(J14,$J$5:$J$15)))+COUNTIF(J$5:J14,J14)-1 -> 10 | L14: =SUMIF(Europe!$I$5:$I$15,Valence!$I14,Europe!$L$5:$L$15)+$J14 -> 35 | M14: =IF(L14="",0,(RANK(L14,$L$5:$L$15)))+COUNTIF(L$5:L14,L14)-1 -> 11
A15: MILLER Jack | I15: SUZUKI TEAM | J15: =SUM($G$32:$G$34) -> 0 | K15: =IF(J15="",0,(RANK(J15,$J$5:$J$15)))+COUNTIF(J$5:J15,J15)-1 -> 11 | L15: =SUMIF(Europe!$I$5:$I$15,Valence!$I15,Europe!$L$5:$L$15)+$J15 -> 165 | M15: =IF(L15="",0,(RANK(L15,$L$5:$L$15)))+COUNTIF(L$5:L15,L15)-1 -> 3
A17: MARQUES Alex | B17: HONDA REPSOL
A18: MARQUES Marc
A19: BRADL Stephan
A20: CRUTCHLOW Cal | B20: HONDA LCR
A21: NAKAGAMI Takaaki
A23: BINDER Brad | B23: KTM FACTORY
A24: ESPARGARO Pol
A26: LEKUONA Iker | B26: KTM TECH3
A27: OLIVEIRA Miguel
A29: MIR Joan | B29: SUZUKI TEAM
A30: RINS Alex
A32: ROSSI Valentino | B32: YAMAHA FACTORY
A33: VINALES Maverick
A35: QUARTARARO Fabio | B35: YAMAHA PETRONAS
A36: MORBIDELLI Franco

Sheet Portugal
A1: ALGARVE - 22 NOVEMBRE 2020
A3: PILOTES | B3: ECURIES | C3: MOTOS | D3: Finish | E3: Pôle | F3: Pt tour | G3: Points | I3: CLASSEMENT
H4: =IF(G4="","",(RANK(G4,G4:G23))) ->  | I4: ÉCURIES | J4: POINTS | K4: RANG | L4: TOTAL | M4: PONCTUEL
A5: IANNONE Andrea | B5: APRILIA RACING | G5: =IFERROR(CHOOSE(D5,25,20,165,13,11,10,9,8,7,6,5,4,3,2,1)+(F5=1),"") ->  | I5: YAMAHA PETRONAS | J5: =SUM($G$35:$G$37) -> 0 | K5: =IF(J5="",0,(RANK(J5,$J$5:$J$15)))+COUNTIF(J$5:J5,J5)-1 -> 1 | L5: =SUMIF(Valence!$I$5:$I$15,Portugal!$I5,Valence!$L$5:$L$15)+$J5 -> 192 | M5: =IF(L5="",0,(RANK(L5,$L$5:$L$15)))+COUNTIF(L$5:L5,L5)-1 -> 1
A6: ESPARGARO Aleix | G6: =IFERROR(CHOOSE(D6,25,20,165,13,11,10,9,8,7,6,5,4,3,2,1)+(F6=1),"") ->  | I6: DUCATI TEAM | J6: =SUM($G$8:$G$10) -> 0 | K6: =IF(J6="",0,(RANK(J6,$J$5:$J$15)))+COUNTIF(J$5:J6,J6)-1 -> 2 | L6: =SUMIF(Valence!$I$5:$I$15,Portugal!$I6,Valence!$L$5:$L$15)+$J6 -> 165 | M6: =IF(L6="",0,(RANK(L6,$L$5:$L$15)))+COUNTIF(L$5:L6,L6)-1 -> 2
A7: BRADLEY Smitth | I7: DUCATI PRAMAC | J7: =SUM($G$14:$G$16) -> 0 | K7: =IF(J7="",0,(RANK(J7,$J$5:$J$15)))+COUNTIF(J$5:J7,J7)-1 -> 3 | L7: =SUMIF(Valence!$I$5:$I$15,Portugal!$I7,Valence!$L$5:$L$15)+$J7 -> 117 | M7: =IF(L7="",0,(RANK(L7,$L$5:$L$15)))+COUNTIF(L$5:L7,L7)-1 -> 6
A8: PETRUCCI Danielo | B8: DUCATI TEAM | I8: YAMAHA FACTORY | J8: =SUM($G$32:$G$34) -> 0 | K8: =IF(J8="",0,(RANK(J8,$J$5:$J$15)))+COUNTIF(J$5:J8,J8)-1 -> 4 | L8: =SUMIF(Valence!$I$5:$I$15,Portugal!$I8,Valence!$L$5:$L$15)+$J8 -> 154 | M8: =IF(L8="",0,(RANK(L8,$L$5:$L$15)))+COUNTIF(L$5:L8,L8)-1 -> 4
A9: DEVIZIOSO Andrea | I9: KTM FACTORY | J9: =SUM($G$23:$G$25) -> 0 | K9: =IF(J9="",0,(RANK(J9,$J$5:$J$15)))+COUNTIF(J$5:J9,J9)-1 -> 5 | L9: =SUMIF(Valence!$I$5:$I$15,Portugal!$I9,Valence!$L$5:$L$15)+$J9 -> 135 | M9: =IF(L9="",0,(RANK(L9,$L$5:$L$15)))+COUNTIF(L$5:L9,L9)-1 -> 5
A10: PIRRO Michele | I10: KTM TECH3 | J10: =SUM($G$26:$G$28) -> 0 | K10: =IF(J10="",0,(RANK(J10,$J$5:$J$15)))+COUNTIF(J$5:J10,J10)-1 -> 6 | L10: =SUMIF(Valence!$I$5:$I$15,Portugal!$I10,Valence!$L$5:$L$15)+$J10 -> 86 | M10: =IF(L10="",0,(RANK(L10,$L$5:$L$15)))+COUNTIF(L$5:L10,L10)-1 -> 8
A11: ZARCO Johann | B11: AVINTIA RACING | I11: HONDA LCR | J11: =SUM($G$20:$G$22) -> 0 | K11: =IF(J11="",0,(RANK(J11,$J$5:$J$15)))+COUNTIF(J$5:J11,J11)-1 -> 7 | L11: =SUMIF(Valence!$I$5:$I$15,Portugal!$I11,Valence!$L$5:$L$15)+$J11 -> 94 | M11: =IF(L11="",0,(RANK(L11,$L$5:$L$15)))+COUNTIF(L$5:L11,L11)-1 -> 7
A12: RABAT Tito | I12: HONDA REPSOL | J12: =SUM($G$17:$G$19) -> 0 | K12: =IF(J12="",0,(RANK(J12,$J$5:$J$15)))+COUNTIF(J$5:J12,J12)-1 -> 8 | L12: =SUMIF(Valence!$I$5:$I$15,Portugal!$I12,Valence!$L$5:$L$15)+$J12 -> 55 | M12: =IF(L12="",0,(RANK(L12,$L$5:$L$15)))+COUNTIF(L$5:L12,L12)-1 -> 9
I13: AVINTIA RACING | J13: =SUM($G$11:$G$13) -> 0 | K13: =IF(J13="",0,(RANK(J13,$J$5:$J$15)))+COUNTIF(J$5:J13,J13)-1 -> 9 | L13: =SUMIF(Valence!$I$5:$I$15,Portugal!$I13,Valence!$L$5:$L$15)+$J13 -> 55 | M13: =IF(L13="",0,(RANK(L13,$L$5:$L$15)))+COUNTIF(L$5:L13,L13)-1 -> 10
A14: BAGNAIA Pecco | B14: DUCATI PRAMAC | I14: APRILIA RACING | J14: =SUM($G$5:$G$7) -> 0 | K14: =IF(J14="",0,(RANK(J14,$J$5:$J$15)))+COUNTIF(J$5:J14,J14)-1 -> 10 | L14: =SUMIF(Valence!$I$5:$I$15,Portugal!$I14,Valence!$L$5:$L$15)+$J14 -> 35 | M14: =IF(L14="",0,(RANK(L14,$L$5:$L$15)))+COUNTIF(L$5:L14,L14)-1 -> 11
A15: MILLER Jack | I15: SUZUKI TEAM | J15: =SUM($G$29:$G$31) -> 0 | K15: =IF(J15="",0,(RANK(J15,$J$5:$J$15)))+COUNTIF(J$5:J15,J15)-1 -> 11 | L15: =SUMIF(Valence!$I$5:$I$15,Portugal!$I15,Valence!$L$5:$L$15)+$J15 -> 165 | M15: =IF(L15="",0,(RANK(L15,$L$5:$L$15)))+COUNTIF(L$5:L15,L15)-1 -> 3
A17: MARQUES Alex | B17: HONDA REPSOL
A18: MARQUES Marc
A19: BRADL Stephan
A20: CRUTCHLOW Cal | B20: HONDA LCR
A21: NAKAGAMI Takaaki
A23: BINDER Brad | B23: KTM FACTORY
A24: ESPARGARO Pol
A26: LEKUONA Iker | B26: KTM TECH3
A27: OLIVEIRA Miguel
A29: MIR Joan | B29: SUZUKI TEAM
A30: RINS Alex
A32: ROSSI Valentino | B32: YAMAHA FACTORY
A33: VINALES Maverick
A35: QUARTARARO Fabio | B35: YAMAHA PETRONAS
A36: MORBIDELLI Franco
